Workbook

Sheet т.1
I1: Таблица 1
A2: Количество населения и общедоступных библиотек Министерства культуры
A4: № | B4: ЦБС | C4: Население ( чел. в тыс.) | F4: Количество библиотек
C5: Всего | D5: гор. | E5: сельск. | F5: 2021 | H5: 2022
F6: всего | G6: из них в | H6: всего | I6: из них в
G7: с/мест. | I7: с/мест
A8: 1 | B8: Абыйская | C8: =D8+E8 -> 3.8 | D8: 1.9 | E8: 1.9 | F8: 7 | G8: 5 | H8: 7 | I8: 5
A9: 2 | B9: Аллаиховская | C9: 2.4 | D9: 1.9 | E9: 0.5 | F9: 6 | G9: 4 | H9: 6 | I9: 4
A10: 3 | B10: Амгинская | C10: 17 | E10: 17 | F10: 16 | G10: 16 | H10: 16 | I10: 16
A11: 4 | B11: Анабарская | C11: 3.5 | E11: 3.5 | F11: 3 | G11: 3 | H11: 3 | I11: 3
A12: 5 | B12: Булунская | C12: 7.7 | D12: 4.2 | E12: 3.5 | F12: 8 | G12: 6 | H12: 8 | I12: 6
A13: 6 | B13: Верхневилюйская | C13: 21 | E13: 21 | F13: 23 | G13: 23 | H13: 23 | I13: 23
A14: 7 | B14: Верхнеколымская | C14: 3.8 | D14: 2.5 | E14: 1.3 | F14: 7 | G14: 5 | H14: 7 | I14: 5
A15: 8 | B15: Верхоянская | C15: 10 | D15: 4.7 | E15: 5.3 | F15: 17 | G15: 13 | H15: 17 | I15: 13
A16: 9 | B16: Вилюйская | C16: 25 | D16: 12.7 | E16: 12.3 | F16: 24 | G16: 20 | H16: 24 | I16: 20
A17: 10 | B17: Горная | C17: 12.1 | E17: 12.1 | F17: 9 | G17: 9 | H17: 9 | I17: 9
A18: 11 | B18: Жиганская | C18: 4.2 | E18: 4.2 | F18: 5 | G18: 5 | H18: 5 | I18: 5
A19: 12 | B19: Кобяйская | C19: 11.3 | D19: 3.3 | E19: 8 | F19: 17 | G19: 15 | H19: 17 | I19: 15
A20: 13 | B20: Ленская | C20: 32.4 | D20: 28.3 | E20: 4.1 | F20: 21 | G20: 14 | H20: 21 | I20: 14
A21: 14 | B21: Момская | C21: 3.7 | E21: 3.7 | F21: 7 | G21: 7 | H21: 7 | I21: 7
A22: 15 | B22: Намская | C22: 25.1 | E22: 25.1 | F22: 20 | G22: 20 | H22: 20 | I22: 20
A23: 16 | B23: Нижнеколымская | C23: 4.2 | D23: 2.6 | E23: 1.6 | F23: 6 | G23: 3 | H23: 6 | I23: 3
A24: 17 | B24: Нюрбинская | C24: 23.2 | D24: 10.1 | E24: 13.1 | F24: 23 | G24: 20 | H24: 23 | I24: 20
A25: 18 | B25: Оймяконская | C25: 7.7 | D25: 4.6 | E25: 3.1 | F25: 9 | G25: 6 | H25: 9 | I25: 6
A26: 19 | B26: Олекминская | C26: 21 | D26: 8.4 | E26: 12.6 | F26: 27 | G26: 25 | H26: 27 | I26: 25
A27: 20 | B27: Оленекская | C27: 4.3 | E27: 4.3 | F27: 5 | G27: 5 | H27: 5 | I27: 5
A28: 21 | B28: Среднеколымская | C28: 6.7 | D28: 3.1 | E28: 3.6 | F28: 11 | G28: 9 | H28: 11 | I28: 9
A29: 22 | B29: Сунтарская | C29: 22.6 | E29: 22.6 | F29: 22 | G29: 22 | H29: 22 | I29: 22
A30: 23 | B30: Таттинская | C30: 16.9 | E30: 16.9 | F30: 15 | G30: 15 | H30: 15 | I30: 15
A31: 24 | B31: Томпонская | C31: 11.2 | D31: 6.3 | E31: 4.9 | F31: 13 | G31: 10 | H31: 13 | I31: 10
A32: 25 | B32: Усть-Алданская | C32: 22.4 | E32: 22.4 | F32: 28 | G32: 28 | H32: 28 | I32: 28
A33: 26 | B33: Усть-Майская | C33: 7.2 | D33: 4.9 | E33: 2.3 | F33: 10 | G33: 5 | H33: 10 | I33: 5
A34: 27 | B34: Усть-Янская* | C34: 6.8 | D34: 3.5 | E34: 3.3 | F34: 9 | G34: 5 | H34: 11 | I34: 7
A35: 28 | B35: Хангаласская | C35: 34.5 | D35: 17.2 | E35: 17.3 | F35: 24 | G35: 21 | H35: 24 | I35: 21
A36: 29 | B36: Чурапчинская | C36: 21.9 | E36: 21.9 | F36: 19 | G36: 19 | H36: 19 | I36: 19
A37: 30 | B37: Мирнинская | C37: 71.5 | D37: 68.8 | E37: 2.7 | F37: 11 | G37: 3 | H37: 11 | I37: 3
A38: 31 | B38: Нерюнгринская | C38: 68.7 | D38: 67.5 | E38: 1.2 | F38: 8 | G38: 2 | H38: 8 | I38: 2
A39: 32 | B39: Эвено-Бытантайская | C39: 2.9 | E39: 2.9 | F39: 3 | G39: 3 | H39: 3 | I39: 3
A40: 33 | B40: Якутская | C40: 376 | D40: 358.5 | E40: 17.5 | F40: 18 | G40: 4 | H40: 18 | I40: 4
A41: 34 | B41: Алданская | C41: 40.2 | D41: 36.6 | E41: 3.6 | F41: 9 | G41: 5 | H41: 9 | I41: 5
A42: 35 | B42: М.-Кангаласская | C42: 33.4 | D42: 5.3 | E42: 28.1 | F42: 31 | G42: 30 | H42: 31 | I42: 30
A43: 36 | B43: ГБ г.Нерюнгри | F43: 1 | H43: 1
A44: 37 | B44: Бердигестях ДБ | F44: 1 | G44: 1 | H44: 1 | I44: 1
A45: 38 | B45: Б-ка ГО "п. Жатай" | C45: 11.5 | D45: 11.5 | F45: 1 | H45: 1
A46: 39 | B46: Алданский БИЦ | F46: 2 | G46: 1 | H46: 2 | I46: 1
A47: 40 | B47: Томмотский БИЦ | F47: 3 | G47: 1 | H47: 3 | I47: 1
B48: Итого по МБ | C48: 997.8 | D48: =SUM(D8:D47) -> 668.4 | E48: 329.4 | F48: 499 | G48: 408 | H48: 501 | I48: 410
B49: НБ РС(Я) | C49: 0 | F49: 1 | H49: 1
B50: Филиал НБ "ДТК" | C50: 0 | F50: 1 | H50: 1
B51: РБС | C51: 0 | F51: 1 | H51: 1
B52: Итого по РС(Я) | C52: =SUM(C48:C51) -> 997.8 | D52: 668.4 | E52: 329.4 | F52: 502 | G52: 408 | H52: 504 | I52: 410
B53: * - библиотеки, где прошла реорганизация

Sheet т.2
G1: Таблица 2
A2: Количество пользователей и процент охвата населения
A3: библиотечным обслуживанием
A4: № | B4: ЦБС | C4: кол-во пользователей | F4: % охвата населения библ.обслуж.
C5: 2021 | D5: 2022 | E5: "+ -" | F5: 2021 | G5: 2022 | H5: "+ -"
A6: 1 | B6: Абыйская | C6: 2219 | D6: 3151 | E6: =D6-C6 -> 932 | F6: 56.8974359 | G6: =D6*100/т.1!C8/1000 -> 82.92105263 | H6: =G6-F6 -> 26.02361673
A7: 2 | B7: Аллаиховская | C7: 1314 | D7: 1310 | E7: =D7-C7 -> -4 | F7: 48.66666667 | G7: =D7*100/т.1!C9/1000 -> 54.58333333 | H7: =G7-F7 -> 5.916666667
A8: 3 | B8: Амгинская | C8: 9468 | D8: 11207 | E8: 1739 | F8: 56.35714286 | G8: =D8*100/т.1!C10/1000 -> 65.92352941 | H8: 9.566386555
A9: 4 | B9: Анабарская | C9: 1141 | D9: 1007 | E9: -134 | F9: 30.83783784 | G9: =D9*100/т.1!C11/1000 -> 28.77142857 | H9: -2.066409266
A10: 5 | B10: Булунская | C10: 6917 | D10: 6877 | E10: -40 | F10: 81.37647059 | G10: =D10*100/т.1!C12/1000 -> 89.31168831 | H10: 7.935217723
A11: 6 | B11: Верхневилюйская | C11: 12911 | D11: 13182 | E11: 271 | F11: 60.9009434 | G11: =D11*100/т.1!C13/1000 -> 62.77142857 | H11: 1.870485175
A12: 7 | B12: Верхнеколымская | C12: 3103 | D12: 2775 | E12: -328 | F12: 77.575 | G12: =D12*100/т.1!C14/1000 -> 73.02631579 | H12: -4.548684211
A13: 8 | B13: Верхоянская | C13: 5875 | D13: 7264 | E13: =D13-C13 -> 1389 | F13: 53.40909091 | G13: =D13*100/т.1!C15/1000 -> 72.64 | H13: 19.23090909
A14: 9 | B14: Вилюйская | C14: 8744 | D14: 11777 | E14: 3033 | F14: 34.83665339 | G14: =D14*100/т.1!C16/1000 -> 47.108 | H14: 12.27134661
A15: 10 | B15: Горная | C15: 6298 | D15: 7082 | E15: 784 | F15: 57.5 | G15: 71.3 | H15: 13.8
A16: 11 | B16: Жиганская | C16: 3410 | D16: 3421 | E16: 11 | F16: 81.19047619 | G16: =D16*100/т.1!C18/1000 -> 81.45238095 | H16: 0.2619047619
A17: 12 | B17: Кобяйская | C17: 8961 | D17: 9886 | E17: 925 | F17: 74.675 | G17: =D17*100/т.1!C19/1000 -> 87.48672566 | H17: 12.81172566
A18: 13 | B18: Ленская | C18: 14515 | D18: 15254 | E18: 739 | F18: 39.76712329 | G18: =D18*100/т.1!C20/1000 -> 47.08024691 | H18: 7.313123626
A19: 14 | B19: Момская | C19: 2057 | D19: 1964 | E19: -93 | F19: 50.17073171 | G19: =D19*100/т.1!C21/1000 -> 53.08108108 | H19: 2.910349374
A20: 15 | B20: Намская | C20: 13156 | D20: 15782 | E20: 2626 | F20: 52.41434263 | G20: =D20*100/т.1!C22/1000 -> 62.87649402 | H20: 10.46215139
A21: 16 | B21: Нижнеколымская | C21: 2282 | D21: 1650 | E21: -632 | F21: 54.33333333 | G21: =D21*100/т.1!C23/1000 -> 39.28571429 | H21: -15.04761905
A22: 17 | B22: Нюрбинская | C22: 19252 | D22: 18269 | E22: -983 | F22: 81.23206751 | G22: =D22*100/т.1!C24/1000 -> 78.74568966 | H22: -2.486377855
A23: 18 | B23: Оймяконская | C23: 5947 | D23: 6225 | E23: 278 | F23: 75.27848101 | G23: =D23*100/т.1!C25/1000 -> 80.84415584 | H23: 5.565674831
A24: 19 | B24: Олекминская | C24: 11021 | D24: 13928 | E24: 2907 | F24: 45.16803279 | G24: =D24*100/т.1!C26/1000 -> 66.32380952 | H24: 21.15577674
A25: 20 | B25: Оленекская | C25: 3158 | D25: 3082 | E25: -76 | F25: 73.44186047 | G25: =D25*100/т.1!C27/1000 -> 71.6744186 | H25: -1.76744186
A26: 21 | B26: Среднеколымская | C26: 4591 | D26: 4549 | E26: -42 | F26: 62.89041096 | G26: =D26*100/т.1!C28/1000 -> 67.89552239 | H26: 5.005111429
A27: 22 | B27: Сунтарская | C27: 15679 | D27: 16285 | E27: 606 | F27: 66.15611814 | G27: =D27*100/т.1!C29/1000 -> 72.05752212 | H27: 5.90140398
A28: 23 | B28: Таттинская | C28: 7324 | D28: 7605 | E28: 281 | F28: 44.93251534 | G28: =D28*100/т.1!C30/1000 -> 45 | H28: 0.06748466258
A29: 24 | B29: Томпонская | C29: 6632 | D29: 7137 | E29: 505 | F29: 52.63492063 | G29: =D29*100/т.1!C31/1000 -> 63.72321429 | H29: 11.08829365
A30: 25 | B30: Усть-Алданская | C30: 20005 | D30: 20001 | E30: -4 | F30: 97.58536585 | G30: =D30*100/т.1!C32/1000 -> 89.29017857 | H30: -8.295187282
A31: 26 | B31: Усть-Майская | C31: 5024 | D31: 4453 | E31: -571 | F31: 69.77777778 | G31: =D31*100/т.1!C33/1000 -> 61.84722222 | H31: -7.930555556
A32: 27 | B32: Усть-Янская* | C32: 3786 | D32: 5267 | E32: 1481 | F32: 54.08571429 | G32: =D32*100/т.1!C34/1000 -> 77.45588235 | H32: 23.37016807
A33: 28 | B33: Хангаласская | C33: 31587 | D33: 51672 | E33: 20085 | F33: 95.71818182 | G33: 42.5 | H33: -53.21818182
A34: 29 | B34: Чурапчинская | C34: 9977 | D34: 13865 | E34: 3888 | F34: 47.28436019 | G34: =D34*100/т.1!C36/1000 -> 63.31050228 | H34: 16.02614209
A35: 30 | B35: Мирнинская | C35: 17022 | D35: 15118 | E35: -1904 | F35: 23.67454798 | G35: =D35*100/т.1!C37/1000 -> 21.14405594 | H35: -2.530492039
A36: 31 | B36: Нерюнгринская | C36: 13145 | D36: 13145 | E36: 0 | F36: 30.4 | G36: 32.7 | H36: 2.3
A37: 32 | B37: Эвено-Бытантай | C37: 1425 | D37: 1410 | E37: =D37-C37 -> -15 | F37: 49.13793103 | G37: =D37*100/т.1!C39/1000 -> 48.62068966 | H37: =G37-F37 -> -0.5172413793
A38: 33 | B38: Якутская | C38: 61159 | D38: 71431 | E38: 10272 | F38: 17.61491935 | G38: =D38*100/т.1!C40/1000 -> 18.99760638 | H38: 1.382687028
A39: 34 | B39: Алданская | C39: 7791 | D39: 10333 | E39: =D39-C39 -> 2542 | F39: 39.6 | G39: 45.9 | H39: =G39-F39 -> 6.3
A40: 35 | B40: М.-Кангаласская | C40: 16360 | D40: 20258 | E40: 3898 | F40: 52.10191083 | G40: =D40*100/т.1!C42/1000 -> 60.65269461 | H40: =G40-F40 -> 8.550783783
A41: 36 | B41: ГБ г.Нерюнгри | C41: 8449 | D41: 9317 | E41: 868
A42: 37 | B42: Бердигестях ДБ | C42: 1449 | D42: 1547 | E42: 98
A43: 38 | B43: Б-ка ГО "п. Жатай" | C43: 2746 | D43: 2429 | E43: -317 | F43: 26.15238095 | G43: =D43*100/т.1!C45/1000 -> 21.12173913 | H43: -5.030641822
A44: 39 | B44: Алданский БИЦ | C44: 3565 | D44: 3575 | E44: 10
A45: 40 | B45: Томмотский БИЦ | C45: 4804 | D45: 4574 | E45: -230
B46: Итого по МБ | C46: =SUM(C6:C45) -> 384269 | D46: =SUM(D6:D45) -> 439064 | E46: =SUM(E6:E45) -> 54795 | F46: 39.13524799 | G46: =D46*100/т.1!C48/1000 -> 44.00320706 | H46: =G46-F46 -> 4.867959067
B47: НБ РС(Я) | C47: 36464 | D47: 33686 | E47: =D47-C47 -> -2778
B48: Филиал НБ "ДТК" | C48: 8069 | D48: 12577 | E48: =D48-C48 -> 4508
B49: РБС | C49: 2270 | D49: 2280 | E49: =D49-C49 -> 10
B50: Итого по РС(Я) | C50: =SUM(C46:C49) -> 431072 | D50: =SUM(D46:D49) -> 487607 | E50: =SUM(E46:E49) -> 56535 | F50: 43.901823 | G50: =D50*100/т.1!C52/1000 -> 48.86821006 | H50: =G50-F50 -> 4.966387066

Sheet 2.1
I1: Таблица 2.1
A2: Количество пользователей
A4: № | B4: ЦБС | C4: всего | D4: из них пользователей, обслуженных в стационарных условиях | G4: из них во внестац. условиях | H4: из них удал. польз. | I4: Читаемость
D5: всего | E5: до 14 лет | F5: от 15-30
A6: 1 | B6: Абыйская | C6: 3151 | D6: 2453 | E6: 660 | F6: 518 | G6: 698 | I6: =т.6!D5/т.2!D6 -> 29.82005712
A7: 2 | B7: Аллаиховская | C7: 1310 | D7: 1091 | E7: 446 | F7: 148 | G7: 161 | H7: 58 | I7: =т.6!D6/т.2!D7 -> 34.07633588
A8: 3 | B8: Амгинская | C8: 11207 | D8: 8222 | E8: 2415 | F8: 1720 | G8: 2238 | H8: 747 | I8: =т.6!D7/т.2!D8 -> 19.91273311
A9: 4 | B9: Анабарская | C9: 1007 | D9: 937 | E9: 446 | F9: 201 | G9: 70 | I9: =т.6!D8/т.2!D9 -> 24.32472691
A10: 5 | B10: Булунская | C10: 6877 | D10: 5705 | E10: 1333 | F10: 1970 | G10: 1172 | I10: =т.6!D9/т.2!D10 -> 23.00407154
A11: 6 | B11: Верхневилюйская | C11: 13182 | D11: 10841 | E11: 3954 | F11: 2108 | G11: 2275 | H11: 66 | I11: =т.6!D10/т.2!D11 -> 22.2539827
A12: 7 | B12: Верхнеколымская | C12: 2775 | D12: 2090 | E12: 860 | F12: 310 | G12: 648 | H12: 37 | I12: =т.6!D11/т.2!D12 -> 24.90162162
A13: 8 | B13: Верхоянская | C13: 7264 | D13: 6334 | E13: 1770 | F13: 1152 | G13: 930 | I13: =т.6!D12/т.2!D13 -> 21.66808921
A14: 9 | B14: Вилюйская | C14: 11777 | D14: 11616 | E14: 3972 | F14: 2508 | G14: 161 | I14: =т.6!D13/т.2!D14 -> 24.32470069
A15: 10 | B15: Горная | C15: 7082 | D15: 5305 | E15: 1664 | F15: 807 | G15: 1081 | H15: 696 | I15: =т.6!D14/т.2!D15 -> 24.64289749
A16: 11 | B16: Жиганская | C16: 3421 | D16: 2680 | E16: 662 | F16: 362 | G16: 648 | H16: 93 | I16: =т.6!D15/т.2!D16 -> 14.37474423
A17: 12 | B17: Кобяйская | C17: 9886 | D17: 7670 | E17: 2817 | F17: 1841 | G17: 2213 | H17: 3 | I17: =т.6!D16/т.2!D17 -> 18.36394902
A18: 13 | B18: Ленская | C18: 15254 | D18: 10660 | E18: 4358 | F18: 1897 | G18: 4345 | H18: 249 | I18: =т.6!D17/т.2!D18 -> 22.12973646
A19: 14 | B19: Момская | C19: 1964 | D19: 1657 | E19: 500 | F19: 354 | G19: 307 | I19: =т.6!D18/т.2!D19 -> 18.89002037
A20: 15 | B20: Намская | C20: 15782 | D20: 13390 | E20: 4719 | F20: 3261 | G20: 2289 | H20: 103 | I20: =т.6!D19/т.2!D20 -> 19.62710683
A21: 16 | B21: Нижнеколымская | C21: 1650 | D21: 1650 | E21: 777 | F21: 412 | I21: =т.6!D20/т.2!D21 -> 32.69818182
A22: 17 | B22: Нюрбинская | C22: 18269 | D22: 13561 | E22: 4073 | F22: 2312 | G22: 4708 | I22: =т.6!D21/т.2!D22 -> 15.5042969
A23: 18 | B23: Оймяконская | C23: 6225 | D23: 4659 | E23: 1319 | F23: 1504 | G23: 1566 | I23: =т.6!D22/т.2!D23 -> 17.90650602
A24: 19 | B24: Олекминская | C24: 13928 | D24: 12423 | E24: 4443 | F24: 2603 | G24: 1505 | I24: =т.6!D23/т.2!D24 -> 20.13655945
A25: 20 | B25: Оленекская | C25: 3082 | D25: 2844 | E25: 920 | F25: 295 | G25: 238 | I25: =т.6!D24/т.2!D25 -> 13.36048021
A26: 21 | B26: Среднеколымская | C26: 4549 | D26: 3715 | E26: 926 | F26: 801 | G26: 834 | I26: =т.6!D25/т.2!D26 -> 14.45768301
A27: 22 | B27: Сунтарская | C27: 16285 | D27: 13403 | E27: 4611 | F27: 2876 | G27: 2873 | H27: 9 | I27: =т.6!D26/т.2!D27 -> 18.30948726
A28: 23 | B28: Таттинская | C28: 7605 | D28: 5411 | E28: 2161 | F28: 1292 | G28: 2151 | H28: 43 | I28: =т.6!D27/т.2!D28 -> 19.64194609
A29: 24 | B29: Томпонская | C29: 7137 | D29: 6328 | E29: 2809 | F29: 1315 | G29: 683 | H29: 126 | I29: =т.6!D28/т.2!D29 -> 20.92461819
A30: 25 | B30: Усть-Алданская | C30: 20001 | D30: 13399 | E30: 5168 | F30: 2046 | G30: 6582 | H30: 20 | I30: =т.6!D29/т.2!D30 -> 19.8360082
A31: 26 | B31: Усть-Майская | C31: 4453 | D31: 3782 | E31: 1380 | F31: 785 | G31: 669 | H31: 2 | I31: =т.6!D30/т.2!D31 -> 34.49090501
A32: 27 | B32: Усть-Янская* | C32: 5267 | D32: 5002 | E32: 1374 | F32: 1333 | G32: 265 | I32: =т.6!D31/т.2!D32 -> 19.60489842
A33: 28 | B33: Хангаласская | C33: 51672 | D33: 11939 | E33: 4837 | F33: 2040 | G33: 2714 | H33: 37019 | I33: =т.6!D32/т.2!D33 -> 7.609227435
A34: 29 | B34: Чурапчинская | C34: 13865 | D34: 9924 | E34: 3122 | F34: 1878 | G34: 3878 | H34: 63 | I34: =т.6!D33/т.2!D34 -> 20.08171655
A35: 30 | B35: Мирнинская | C35: 15118 | D35: 14872 | E35: 5735 | F35: 3185 | G35: 174 | H35: 72 | I35: =т.6!D34/т.2!D35 -> 21.09101733
A36: 31 | B36: Нерюнгринская | C36: 13145 | D36: 11577 | E36: 3567 | F36: 2986 | G36: 977 | H36: 591 | I36: =т.6!D35/т.2!D36 -> 23.05644732
A37: 32 | B37: Эвено-Бытантайская | C37: 1410 | D37: 1105 | E37: 448 | F37: 114 | G37: 305 | I37: =т.6!D36/т.2!D37 -> 27.18794326
A38: 33 | B38: Якутская | C38: 71431 | D38: 68209 | E38: 25688 | F38: 18148 | G38: 3125 | H38: 97 | I38: =т.6!D37/т.2!D38 -> 22.80640058
A39: 34 | B39: Алданская | C39: 10333 | D39: 8947 | E39: 1834 | F39: 1881 | G39: 1058 | H39: 328 | I39: =т.6!D38/т.2!D39 -> 17.41498113
A40: 35 | B40: М.-Кангаласская | C40: 20258 | D40: 15556 | E40: 5698 | F40: 2326 | G40: 4674 | H40: 28 | I40: =т.6!D39/т.2!D40 -> 17.39757133
A41: 36 | B41: ГБ г.Нерюнгри | C41: 9317 | D41: 8861 | E41: 4373 | F41: 1792 | G41: 57 | H41: 399 | I41: =т.6!D40/т.2!D41 -> 17.55532897
A42: 37 | B42: Бердигестях ДБ | C42: 1547 | D42: 1127 | E42: 994 | F42: 133 | G42: 341 | H42: 79 | I42: =т.6!D41/т.2!D42 -> 24.56367162
A43: 38 | B43: Б-ка ГО "п. Жатай" | C43: 2429 | D43: 2411 | E43: 1017 | F43: 277 | G43: 18 | I43: =т.6!D42/т.2!D43 -> 19.21449156
A44: 39 | B44: Алданский БИЦ | C44: 3575 | D44: 2964 | E44: 1653 | F44: 642 | G44: 611 | I44: =т.6!D43/т.2!D44 -> 19.86377622
A45: 40 | B45: Томмотский БИЦ | C45: 4574 | D45: 4183 | E45: 1848 | F45: 656 | G45: 391 | I45: =т.6!D44/т.2!D45 -> 23.6375164
B46: Итого по МБ | C46: =SUM(C6:C45) -> 439064 | D46: 338503 | E46: 121351 | F46: 72789 | G46: 59633 | H46: 40928 | I46: =т.6!D45/т.2!D46 -> 19.24028615
B47: НБ РС(Я) | C47: 33686 | D47: 11720 | F47: 7096 | G47: 1964 | H47: 20002 | I47: =т.6!D46/т.2!D47 -> 45.80540878
B48: Филиал НБ "ДТК" | C48: 12577 | D48: 11753 | E48: 8620 | F48: 2295 | G48: 824 | I48: =т.6!D47/т.2!D48 -> 10.08817683
B49: РБС | C49: 2280 | D49: 551 | E49: 49 | F49: 55 | G49: 1452 | H49: 277 | I49: =т.6!D48/т.2!D49 -> 40.22894737
B50: Итого по РС(Я) | C50: =SUM(C46:C49) -> 487607 | D50: 362527 | E50: 130020 | F50: 82235 | G50: 63873 | H50: 61207 | I50: =т.6!D49/т.2!D50 -> 20.93759729

Sheet т.2.2
F1: Таблица 2.2
B2: Количество пользователей в сельской местности
A3: № | B3: ЦБС | C3: всего из общего числа в с/местн. | D3: из них пользователей, обслуженных в стенах библиотеки | G3: из них во внестац | H3: из них удал. польз
D4: всего | E4: до 14 лет | F4: от 15-30
A7: 1 | B7: Абыйская | C7: 1337 | D7: 1146 | E7: 355 | F7: 186 | G7: 191
A8: 2 | B8: Аллаиховская | C8: 280 | D8: 254 | E8: 99 | F8: 50 | G8: 26
A9: 3 | B9: Амгинская | C9: 11207 | D9: 8222 | E9: 2415 | F9: 1720 | G9: 2238 | H9: 747
A10: 4 | B10: Анабарская | C10: 1007 | D10: 937 | E10: 446 | F10: 201 | G10: 70
A11: 5 | B11: Булунская | C11: 2307 | D11: 1737 | E11: 613 | F11: 475 | G11: 570
A12: 6 | B12: Верхневилюйская | C12: 13182 | D12: 10841 | E12: 3954 | F12: 2108 | G12: 2275 | H12: 66
A13: 7 | B13: Верхнеколымская | C13: 1068 | D13: 762 | E13: 238 | F13: 117 | G13: 306
A14: 8 | B14: Верхоянская | C14: 3145 | D14: 2778 | E14: 811 | F14: 453 | G14: 367
A15: 9 | B15: Вилюйская | C15: 5858 | D15: 5754 | E15: 1692 | F15: 1087 | G15: 104
A16: 10 | B16: Горная | C16: 7082 | D16: 5305 | E16: 1664 | F16: 807 | G16: 1081 | H16: 696
A17: 11 | B17: Жиганская | C17: 3421 | D17: 2680 | E17: 662 | F17: 362 | G17: 648 | H17: 93
A18: 12 | B18: Кобяйская | C18: 4878 | D18: 3361 | E18: 1254 | F18: 705 | G18: 1517
A19: 13 | B19: Ленская | C19: 2427 | D19: 2137 | E19: 768 | F19: 283 | G19: 290
A20: 14 | B20: Момская | C20: 1964 | D20: 1657 | E20: 500 | F20: 354 | G20: 307
A21: 15 | B21: Намская | C21: 15782 | D21: 13390 | E21: 4719 | F21: 3261 | G21: 2289 | H21: 103
A22: 16 | B22: Нижнеколымская | C22: 604 | D22: 604 | E22: 203 | F22: 194
A23: 17 | B23: Нюрбинская | C23: 10512 | D23: 7783 | E23: 2514 | F23: 1275 | G23: 2729
A24: 18 | B24: Оймяконская | C24: 2193 | D24: 1733 | E24: 525 | F24: 506 | G24: 460
A25: 19 | B25: Олекминская | C25: 7433 | D25: 6314 | E25: 1802 | F25: 1036 | G25: 1119
A26: 20 | B26: Оленекская | C26: 3082 | D26: 2844 | E26: 920 | F26: 295 | G26: 238
A27: 21 | B27: Среднеколымская | C27: 2783 | D27: 2122 | E27: 509 | F27: 447 | G27: 661
A28: 22 | B28: Сунтарская | C28: 16285 | D28: 13403 | E28: 4611 | F28: 2876 | G28: 2873 | H28: 9
A29: 23 | B29: Таттинская | C29: 7605 | D29: 5411 | E29: 2161 | F29: 1292 | G29: 2151 | H29: 43
A30: 24 | B30: Томпонская | C30: 3242 | D30: 2898 | E30: 1230 | F30: 583 | G30: 344
A31: 25 | B31: Усть-Алданская | C31: 20001 | D31: 13399 | E31: 5168 | F31: 2046 | G31: 6582 | H31: 20
A32: 26 | B32: Усть-Майская | C32: 1199 | D32: 1183 | E32: 366 | F32: 209 | G32: 14 | H32: 2
A33: 27 | B33: Усть-Янская* | C33: 1896 | D33: 1756 | E33: 561 | F33: 606 | G33: 140
A34: 28 | B34: Хангаласская | C34: 10769 | D34: 6023 | E34: 1700 | F34: 1171 | G34: 2164 | H34: 2582
A35: 29 | B35: Чурапчинская | C35: 13865 | D35: 9924 | E35: 3122 | F35: 1878 | G35: 3878 | H35: 63
A36: 30 | B36: Мирнинская | C36: 695 | D36: 684 | E36: 279 | F36: 156 | G36: 11
A37: 31 | B37: Нерюнгринская | C37: 954 | D37: 836 | E37: 299 | F37: 179 | G37: 118
A38: 32 | B38: Эвено-Бытантайская | C38: 1410 | D38: 1105 | E38: 448 | F38: 114 | G38: 305
A39: 33 | B39: Якутская | C39: 6322 | D39: 6193 | E39: 2479 | F39: 1160 | G39: 129
A40: 34 | B40: Алданская | C40: 703 | D40: 541 | E40: 250 | F40: 119 | G40: 162
A41: 35 | B41: М.-Кангаласская | C41: 19070 | D41: 15082 | E41: 5428 | F41: 2308 | G41: 3960 | H41: 28
A42: 36 | B42: Бердигестях ДБ | C42: 1547 | D42: 1127 | E42: 994 | F42: 133 | G42: 341 | H42: 79
A43: 37 | B43: Алданский БИЦ | C43: 71 | D43: 64 | E43: 23 | F43: 18 | G43: 7
A44: 38 | B44: Томмотский БИЦ | C44: 151 | D44: 118 | E44: 33 | F44: 21 | G44: 33
B45: Итого по РС(Я) | C45: =SUM(C7:C44) -> 207337 | D45: 162108 | E45: 55815 | F45: 30791 | G45: 40698 | H45: 4531

Sheet т.3
G1: Таблица 3
A2: Число посещений. Посещаемость
A3: № | B3: ЦБС | C3: Число посещений | F3: Посещаемость
C4: 2021 | D4: 2022 | E4: "+ -" | F4: 2021 | G4: 2022 | H4: "+ -"
A5: 1 | B5: Абыйская | C5: 13874 | D5: 29023 | E5: =D5-C5 -> 15149 | F5: 6.3 | G5: =т.3!D5/т.2!D6 -> 9.210726753 | H5: =G5 - F5 -> 2.910726753
A6: 2 | B6: Аллаиховская | C6: 12679 | D6: 14527 | E6: =D6-C6 -> 1848 | F6: 9.6 | G6: =т.3!D6/т.2!D7 -> 11.08931298 | H6: 1.489312977
A7: 3 | B7: Амгинская | C7: 61810 | D7: 87569 | E7: 25759 | F7: 6.5 | G7: =т.3!D7/т.2!D8 -> 7.813777104 | H7: 1.313777104
A8: 4 | B8: Анабарская | C8: 6266 | D8: 10411 | E8: 4145 | F8: 5.5 | G8: =т.3!D8/т.2!D9 -> 10.33862959 | H8: 4.838629593
A9: 5 | B9: Булунская | C9: 79157 | D9: 87405 | E9: 8248 | F9: 11.4 | G9: =т.3!D9/т.2!D10 -> 12.70975716 | H9: 1.309757162
A10: 6 | B10: Верхневилюйская | C10: 126517 | D10: 119556 | E10: -6961 | F10: 9.8 | G10: =т.3!D10/т.2!D11 -> 9.069640419 | H10: -0.7303595812
A11: 7 | B11: Верхнеколымская | C11: 35374 | D11: 32686 | E11: -2688 | F11: 11.4 | G11: =т.3!D11/т.2!D12 -> 11.77873874 | H11: 0.3787387387
A12: 8 | B12: Верхоянская | C12: 67801 | D12: 80609 | E12: 12808 | F12: 11.5 | G12: =т.3!D12/т.2!D13 -> 11.09705396 | H12: -0.4029460352
A13: 9 | B13: Вилюйская | C13: 71073 | D13: 117850 | E13: 46777 | F13: 8.1 | G13: =т.3!D13/т.2!D14 -> 10.0067929 | H13: 1.906792901
A14: 10 | B14: Горная | C14: 59767 | D14: 64617 | E14: 4850 | F14: 9.5 | G14: =т.3!D14/т.2!D15 -> 9.124117481 | H14: -0.3758825191
A15: 11 | B15: Жиганская | C15: 25548 | D15: 22435 | E15: -3113 | F15: 7.5 | G15: =т.3!D15/т.2!D16 -> 6.55802397 | H15: -0.9419760304
A16: 12 | B16: Кобяйская | C16: 92126 | D16: 97552 | E16: 5426 | F16: 10.3 | G16: =т.3!D16/т.2!D17 -> 9.867691685 | H16: -0.4323083148
A17: 13 | B17: Ленская | C17: 122242 | D17: 153936 | E17: 31694 | F17: 8.4 | G17: =т.3!D17/т.2!D18 -> 10.09151698 | H17: 1.691516979
A18: 14 | B18: Момская | C18: 14417 | D18: 17506 | E18: 3089 | F18: 7 | G18: =т.3!D18/т.2!D19 -> 8.913441955 | H18: 1.913441955
A19: 15 | B19: Намская | C19: 103118 | D19: 136213 | E19: 33095 | F19: 7.8 | G19: =т.3!D19/т.2!D20 -> 8.63090863 | H19: 0.8309086301
A20: 16 | B20: Нижнеколымская | C20: 16872 | D20: 21711 | E20: 4839 | F20: 7.4 | G20: =т.3!D20/т.2!D21 -> 13.15818182 | H20: 5.758181818
A21: 17 | B21: Нюрбинская | C21: 76024 | D21: 109022 | E21: 32998 | F21: 3.9 | G21: =т.3!D21/т.2!D22 -> 5.96759538 | H21: 2.06759538
A22: 18 | B22: Оймяконская | C22: 57374 | D22: 66402 | E22: 9028 | F22: 9.6 | G22: =т.3!D22/т.2!D23 -> 10.66698795 | H22: 1.066987952
A23: 19 | B23: Олекминская | C23: 91444 | D23: 156361 | E23: 64917 | F23: 8.3 | G23: =т.3!D23/т.2!D24 -> 11.22637852 | H23: 2.926378518
A24: 20 | B24: Оленекская | C24: 23533 | D24: 25252 | E24: 1719 | F24: 7.5 | G24: =т.3!D24/т.2!D25 -> 8.193380921 | H24: 0.6933809215
A25: 21 | B25: Среднеколымская | C25: 39062 | D25: 43773 | E25: 4711 | F25: 8.5 | G25: =т.3!D25/т.2!D26 -> 9.622554408 | H25: 1.122554408
A26: 22 | B26: Сунтарская | C26: 107896 | D26: 153043 | E26: 45147 | F26: 6.9 | G26: =т.3!D26/т.2!D27 -> 9.397789377 | H26: 2.497789377
A27: 23 | B27: Таттинская | C27: 57973 | D27: 58264 | E27: 291 | F27: 7.9 | G27: =т.3!D27/т.2!D28 -> 7.661275477 | H27: -0.2387245233
A28: 24 | B28: Томпонская | C28: 80804 | D28: 77509 | E28: -3295 | F28: 12.2 | G28: =т.3!D28/т.2!D29 -> 10.86016534 | H28: -1.339834664
A29: 25 | B29: Усть-Алданская | C29: 210112 | D29: 245104 | E29: 34992 | F29: 10.5 | G29: =т.3!D29/т.2!D30 -> 12.25458727 | H29: 1.754587271
A30: 26 | B30: Усть-Майская | C30: 73041 | D30: 71512 | E30: -1529 | F30: 14.5 | G30: =т.3!D30/т.2!D31 -> 16.05928587 | H30: 1.559285875
A31: 27 | B31: Усть-Янская* | C31: 29669 | D31: 26180 | E31: -3489 | F31: 7.8 | G31: =т.3!D31/т.2!D32 -> 4.970571483 | H31: -2.829428517
A32: 28 | B32: Хангаласская | C32: 115801 | D32: 151343 | E32: 35542 | F32: 3.7 | G32: =т.3!D32/т.2!D33 -> 2.928917015 | H32: -0.771082985
A33: 29 | B33: Чурапчинская | C33: 67067 | D33: 103273 | E33: 36206 | F33: 6.7 | G33: =т.3!D33/т.2!D34 -> 7.448467364 | H33: 0.7484673639
A34: 30 | B34: Мирнинская | C34: 117680 | D34: 128049 | E34: 10369 | F34: 6.9 | G34: =т.3!D34/т.2!D35 -> 8.469969573 | H34: 1.569969573
A35: 31 | B35: Нерюнгринская | C35: 92498 | D35: 100011 | E35: 7513 | F35: 7 | G35: =т.3!D35/т.2!D36 -> 7.608292126 | H35: 0.6082921263
A36: 32 | B36: Эвено-Бытантай | C36: 17785 | D36: 17967 | E36: 182 | F36: 12.5 | G36: =т.3!D36/т.2!D37 -> 12.74255319 | H36: 0.2425531915
A37: 33 | B37: Якутская | C37: 422356 | D37: 478148 | E37: 55792 | F37: 6.9 | G37: =т.3!D37/т.2!D38 -> 6.693844409 | H37: -0.2061555907
A38: 34 | B38: Алданская | C38: 83037 | D38: 116811 | E38: =D38-C38 -> 33774 | F38: 10.7 | G38: =т.3!D38/т.2!D39 -> 11.30465499 | H38: =G38 - F38 -> 0.6046549889
A39: 35 | B39: М.-Кангаласская | C39: 77475 | D39: 131414 | E39: =D39-C39 -> 53939 | F39: 4.7 | G39: =т.3!D39/т.2!D40 -> 6.487017475 | H39: =G39 - F39 -> 1.787017475
A40: 36 | B40: ГБ г.Нерюнгри | C40: 60458 | D40: 112354 | E40: 51896 | F40: 7.2 | G40: =т.3!D40/т.2!D41 -> 12.05903188 | H40: 4.859031877
A41: 37 | B41: Бердигестях ДБ | C41: 5687 | D41: 20906 | E41: 15219 | F41: 3.9 | G41: =т.3!D41/т.2!D42 -> 13.51389787 | H41: 9.613897867
A42: 38 | B42: Б-ка ГО "п. Жатай" | C42: 18135 | D42: 19936 | E42: 1801 | F42: 6.6 | G42: =т.3!D42/т.2!D43 -> 8.207492795 | H42: 1.607492795
A43: 39 | B43: Алданский БИЦ | C43: 37951 | D43: 34824 | E43: =D43-C43 -> -3127 | F43: 10.6 | G43: =т.3!D43/т.2!D44 -> 9.740979021 | H43: =G43 - F43 -> -0.859020979
A44: 40 | B44: Томмотский БИЦ | C44: 56674 | D44: 59263 | E44: 2589 | F44: 11.8 | G44: =т.3!D44/т.2!D45 -> 12.95649322 | H44: 1.156493223
B45: Итого по МБ | C45: =SUM(C5:C44) -> 2928177 | D45: =SUM(D5:D44) -> 3600327 | E45: 672150 | F45: 7.6 | G45: =т.3!D45/т.2!D46 -> 8.200005011 | H45: 0.6000050107
B46: НБ РС(Я) | C46: 381450 | D46: 447117 | E46: 65667 | F46: 10.5 | G46: =т.3!D46/т.2!D47 -> 13.27308081 | H46: 2.773080805
B47: Филиал НБ "ДТК" | C47: 64194 | D47: 69345 | E47: 5151 | F47: 8 | G47: =т.3!D47/т.2!D48 -> 5.513636002 | H47: -2.486363998
B48: РБС | C48: 12317 | D48: 12309 | E48: -8 | F48: 5.4 | G48: =т.3!D48/т.2!D49 -> 5.398684211 | H48: -0.001315789474
B49: Итого по РС(Я) | C49: =SUM(C45:C48) -> 3386138 | D49: =SUM(D45:D48) -> 4129098 | E49: =SUM(E45:E48) -> 742960 | F49: 7.9 | G49: =т.3!D49/т.2!D50 -> 8.468085979 | H49: =G49-F49 -> 0.5680859791

Sheet т.4
I1: Таблица 4
A2: Движение библиотечного фонда .
C3: Сост. на | D3: Поступило | G3: Выбыло | I3: Сост. на
A4: № | B4: ЦБС | C4: 2022-01-01 | D4: всего (экз) | E4: из них вновь приобрет. (экз). | F4: фонд реорг.б-к | G4: (экз.) | H4: из них без учета фонда р/б | I4: 2023-01-01
A5: 1 | B5: Абыйская | C5: 78164 | D5: 2049 | E5: 1960 | G5: 4428 | H5: 4428 | I5: =C5+D5+F5-G5 -> 75785
A6: 2 | B6: Аллаиховская | C6: 78454 | D6: 798 | E6: 798 | G6: 369 | H6: 369 | I6: 78883
A7: 3 | B7: Амгинская | C7: 187570 | D7: 6690 | E7: 6561 | G7: 7139 | H7: 7139 | I7: 187121
A8: 4 | B8: Анабарская | C8: 24944 | D8: 1473 | E8: 1473 | G8: 336 | H8: 336 | I8: 26081
A9: 5 | B9: Булунская | C9: 147673 | D9: 1329 | E9: 1329 | G9: 1690 | H9: 1690 | I9: 147312
A10: 6 | B10: Верхневилюйская | C10: 231064 | D10: 5486 | E10: 5486 | G10: 10304 | H10: 10304 | I10: 226246
A11: 7 | B11: Верхнеколымская | C11: 109564 | D11: 3302 | E11: 3302 | G11: 3612 | H11: 3612 | I11: 109254
A12: 8 | B12: Верхоянская | C12: 216425 | D12: 6487 | E12: 6487 | G12: 7782 | H12: 7782 | I12: 215130
A13: 9 | B13: Вилюйская | C13: 269674 | D13: 6113 | E13: 6113 | G13: 4666 | H13: 4666 | I13: 271121
A14: 10 | B14: Горная | C14: 102081 | D14: 2347 | E14: 2347 | G14: 2695 | H14: 2695 | I14: 101733
A15: 11 | B15: Жиганская | C15: 56344 | D15: 2864 | E15: 2864 | G15: 642 | H15: 642 | I15: 58566
A16: 12 | B16: Кобяйская | C16: 197201 | D16: 4177 | E16: 4177 | G16: 1666 | H16: 1666 | I16: 199712
A17: 13 | B17: Ленская | C17: 207672 | D17: 13189 | E17: 13189 | G17: 9183 | H17: 9183 | I17: 211678
A18: 14 | B18: Момская | C18: 86301 | D18: 3921 | E18: 3921 | G18: 2107 | H18: 2107 | I18: 88115
A19: 15 | B19: Намская | C19: 201683 | D19: 10518 | E19: 10518 | G19: 10293 | H19: 10293 | I19: 201908
A20: 16 | B20: Нижнеколымская | C20: 99980 | D20: 3455 | E20: 3455 | G20: 1004 | H20: 1004 | I20: 102431
A21: 17 | B21: Нюрбинская | C21: 330108 | D21: 4524 | E21: 4524 | G21: 1402 | H21: 1402 | I21: 333230
A22: 18 | B22: Оймяконская | C22: 117233 | D22: 686 | E22: 686 | G22: 3573 | H22: 3573 | I22: 114346
A23: 19 | B23: Олекминская | C23: 266721 | D23: 9061 | E23: 8849 | G23: 18259 | H23: 18259 | I23: 257523
A24: 20 | B24: Оленекская | C24: 55714 | D24: 1590 | E24: 1590 | G24: 1764 | H24: 1764 | I24: 55540
A25: 21 | B25: Среднеколымская | C25: 125823 | D25: 3076 | E25: 3076 | G25: 4154 | H25: 4154 | I25: 124745
A26: 22 | B26: Сунтарская | C26: 232088 | D26: 11786 | E26: 11786 | G26: 9424 | H26: 9424 | I26: 234450
A27: 23 | B27: Таттинская | C27: 209367 | D27: 5086 | E27: 5086 | G27: 4848 | H27: 4848 | I27: 209605
A28: 24 | B28: Томпонская | C28: 174637 | D28: 4027 | E28: 4027 | G28: 2425 | H28: 2425 | I28: 176239
A29: 25 | B29: Усть-Алданская | C29: 407074 | D29: 12528 | E29: 12528 | G29: 11310 | H29: 11310 | I29: 408292
A30: 26 | B30: Усть-Майская | C30: 127566 | D30: 5204 | E30: 5204 | G30: 4444 | H30: 4444 | I30: 128326
A31: 27 | B31: Усть-Янская* | C31: 171379 | D31: 1410 | E31: 1133 | G31: 277 | H31: 277 | I31: 172512
A32: 28 | B32: Хангаласская | C32: 316508 | D32: 8907 | E32: 8118 | G32: 8599 | H32: 8599 | I32: 316816
A33: 29 | B33: Чурапчинская | C33: 275155 | D33: 6366 | E33: 6366 | G33: 3978 | H33: 3978 | I33: 277543
A34: 30 | B34: Мирнинская | C34: 229935 | D34: 11264 | E34: 11264 | G34: 7992 | H34: 7992 | I34: 233207
A35: 31 | B35: Нерюнгринская | C35: 142752 | D35: 4661 | E35: 4661 | G35: 2618 | H35: 2618 | I35: 144795
A36: 32 | B36: Эвено-Бытантайская | C36: 42480 | D36: 725 | E36: 725 | G36: 1183 | H36: 1183 | I36: 42022
A37: 33 | B37: Якутская | C37: 461962 | D37: 21687 | E37: 13234 | G37: 33371 | H37: 33371 | I37: 450278
A38: 34 | B38: Алданская | C38: 123303 | D38: 7578 | E38: 7578 | G38: 4888 | H38: 4888 | I38: 125993
A39: 35 | B39: Мегино-Кангаласская | C39: 460564 | D39: 5890 | E39: 5890 | G39: 11165 | H39: 11165 | I39: 455289
A40: 36 | B40: ГБ г.Нерюнгри | C40: 111027 | D40: 2210 | E40: 2210 | G40: 4548 | H40: 4548 | I40: 108689
A41: 37 | B41: Бердигестях ДБ | C41: 16706 | D41: 560 | E41: 560 | I41: 17266
A42: 38 | B42: Б-ка ГО "п. Жатай" | C42: 20880 | D42: 130 | E42: 130 | G42: 102 | H42: 102 | I42: 20908
A43: 39 | B43: Алданский БИЦ | C43: 34584 | D43: 2052 | E43: 2052 | G43: 1282 | H43: 1282 | I43: 35354
A44: 40 | B44: Томмотский БИЦ | C44: 40442 | D44: 3451 | E44: 3451 | G44: 1966 | H44: 1966 | I44: 41927
B45: Итого по МБ | C45: =SUM(C5:C44) -> 6788802 | D45: 208657 | E45: 198708 | F45: 0 | G45: 211488 | H45: 211488 | I45: 6785971
B46: НБ РС(Я) | C46: 1681678 | D46: 25168 | E46: 25168 | I46: 1706846
B47: Филиал НБ "ДТК" | C47: 172444 | D47: 2497 | E47: 2497 | I47: 174941
B48: РБС | C48: 148563 | D48: 5286 | E48: 5286 | G48: 1735 | H48: 1735 | I48: 152114
B49: Итого по РС(Я) | C49: =SUM(C45:C48) -> 8791487 | D49: 241608 | E49: 231659 | F49: 0 | G49: 213223 | H49: 213223 | I49: 8819872

Sheet т.4.1
G1: Таблица 4.1
A2: Библиотечный фонд
A4: № | B4: ЦБС | C4: 2021 | D4: 2022 | E4: "+ -" | F4: в городе | G4: в сельск.местн.
A5: 1 | B5: Абыйская | C5: 78164 | D5: 75785 | E5: =D5-C5 -> -2379 | F5: =D5-G5 -> 32155 | G5: 43630
A6: 2 | B6: Аллаиховская | C6: 78454 | D6: 78883 | E6: =D6-C6 -> 429 | F6: =D6-G6 -> 48186 | G6: 30697
A7: 3 | B7: Амгинская | C7: 187570 | D7: 187121 | E7: -449 | F7: =D7-G7 -> 0 | G7: 187121
A8: 4 | B8: Анабарская | C8: 24944 | D8: 26081 | E8: 1137 | F8: =D8-G8 -> 0 | G8: 26081
A9: 5 | B9: Булунская | C9: 147673 | D9: 147312 | E9: -361 | F9: 68069 | G9: 79243
A10: 6 | B10: Верхневилюйская | C10: 231064 | D10: 226246 | E10: -4818 | F10: 0 | G10: 226246
A11: 7 | B11: Верхнеколымская | C11: 109564 | D11: 109254 | E11: -310 | F11: 62788 | G11: 46466
A12: 8 | B12: Верхоянская | C12: 216425 | D12: 215130 | E12: -1295 | F12: 91872 | G12: 123258
A13: 9 | B13: Вилюйская | C13: 269674 | D13: 271121 | E13: 1447 | F13: 88360 | G13: 182761
A14: 10 | B14: Горная | C14: 102081 | D14: 101733 | E14: -348 | F14: 0 | G14: 101733
A15: 11 | B15: Жиганская | C15: 56344 | D15: 58566 | E15: 2222 | F15: 0 | G15: 58566
A16: 12 | B16: Кобяйская | C16: 197201 | D16: 199712 | E16: 2511 | F16: 49371 | G16: 150341
A17: 13 | B17: Ленская | C17: 207672 | D17: 211678 | E17: 4006 | F17: 121206 | G17: 90472
A18: 14 | B18: Момская | C18: 86301 | D18: 88115 | E18: 1814 | F18: 0 | G18: 88115
A19: 15 | B19: Намская | C19: 201683 | D19: 201908 | E19: 225 | F19: 0 | G19: 201908
A20: 16 | B20: Нижнеколымская | C20: 99980 | D20: 102431 | E20: 2451 | F20: 70835 | G20: 31596
A21: 17 | B21: Нюрбинская | C21: 330108 | D21: 333230 | E21: 3122 | F21: 87152 | G21: 246078
A22: 18 | B22: Оймяконская | C22: 117233 | D22: 114346 | E22: -2887 | F22: 43204 | G22: 71142
A23: 19 | B23: Олекминская | C23: 266721 | D23: 257523 | E23: -9198 | F23: 55574 | G23: 201949
A24: 20 | B24: Оленекская | C24: 55714 | D24: 55540 | E24: -174 | F24: 0 | G24: 55540
A25: 21 | B25: Среднеколымская | C25: 125823 | D25: 124745 | E25: -1078 | F25: 50946 | G25: 73799
A26: 22 | B26: Сунтарская | C26: 232088 | D26: 234450 | E26: 2362 | F26: 0 | G26: 234450
A27: 23 | B27: Таттинская | C27: 209367 | D27: 209605 | E27: 238 | F27: 0 | G27: 209605
A28: 24 | B28: Томпонская | C28: 174637 | D28: 176239 | E28: 1602 | F28: 74481 | G28: 101758
A29: 25 | B29: Усть-Алданская | C29: 407074 | D29: 408292 | E29: 1218 | F29: 0 | G29: 408292
A30: 26 | B30: Усть-Майская | C30: 127566 | D30: 128326 | E30: 760 | F30: 83124 | G30: 45202
A31: 27 | B31: Усть-Янская* | C31: 171379 | D31: 172512 | E31: 1133 | F31: 85212 | G31: 87300
A32: 28 | B32: Хангаласская | C32: 316508 | D32: 316816 | E32: 308 | F32: 111453 | G32: 205363
A33: 29 | B33: Чурапчинская | C33: 275155 | D33: 277543 | E33: 2388 | F33: 0 | G33: 277543
A34: 30 | B34: Мирнинская | C34: 229935 | D34: 233207 | E34: 3272 | F34: 197954 | G34: 35253
A35: 31 | B35: Нерюнгринская | C35: 142752 | D35: 144795 | E35: 2043 | F35: 121321 | G35: 23474
A36: 32 | B36: Эвено-Бытантайская | C36: 42480 | D36: 42022 | E36: -458 | F36: 0 | G36: 42022
A37: 33 | B37: Якутская | C37: 461962 | D37: 450278 | E37: =D37-C37 -> -11684 | F37: =D37-G37 -> 388172 | G37: 62106
A38: 34 | B38: Алданская | C38: 123303 | D38: 125993 | E38: =D38-C38 -> 2690 | F38: 87023 | G38: 38970
A39: 35 | B39: Мегино-Кангаласская | C39: 460564 | D39: 455289 | E39: =D39-C39 -> -5275 | F39: 12898 | G39: 442391
A40: 36 | B40: ГБ г.Нерюнгри | C40: 111027 | D40: 108689 | E40: -2338 | F40: 108689 | G40: 0
A41: 37 | B41: Бердигестях ДБ | C41: 16706 | D41: 17266 | F41: 0 | G41: 17266
A42: 38 | B42: Б-ка ГО "п. Жатай" | C42: 20880 | D42: 20908 | E42: =D42-C42 -> 28 | F42: 20908 | G42: 0
A43: 39 | B43: Алданский БИЦ | C43: 34584 | D43: 35354 | F43: =D43-G43 -> 28481 | G43: 6873
A44: 40 | B44: Томмотский БИЦ | C44: 40442 | D44: 41927 | F44: 36392 | G44: 5535
B45: Итого по МБ | C45: =SUM(C5:C44) -> 6788802 | D45: =SUM(D5:D44) -> 6785971 | E45: -2831 | F45: =SUM(F5:F44) -> 2225826 | G45: =SUM(G5:G44) -> 4560145
B46: НБ РС(Я) | C46: 1681678 | D46: 1706846 | E46: 25168 | F46: 1706846 | G46: 0
B47: Филиал НБ "ДТК" | C47: 172444 | D47: 174941 | E47: 2497 | F47: 174941 | G47: 0
B48: РБС | C48: 148563 | D48: 152114 | E48: 3551 | F48: 152114 | G48: 0
B49: Итого по РС(Я) | C49: =SUM(C45:C48) -> 8791487 | D49: =SUM(D45:D48) -> 8819872 | E49: 28385 | F49: =SUM(F45:F48) -> 4259727 | G49: =SUM(G45:G48) -> 4560145

Sheet т.4.2
J1: Таблица 4.2
A2: Новые поступления в библиотечный фонд (экз.)
E3: в том числе | I3: спец. | J3: на яз. | K3: на
A4: № | B4: ЦБС | C4: 2021 | D4: 2022 | E4: печ.изд. | F4: из них | G4: эл.док. | H4: док. на | J4: нар.РФ | K4: иностр. | L4: "+ -"
E5: неопуб. | F5: книг | G5: съемн | H5: др.вид. | I5: док. | J5: кр.рус.яз. | K5: яз.
A6: 1 | B6: Абыйская | C6: 1104 | D6: 1960 | E6: 1960 | F6: 1345 | J6: 480 | L6: =D6-C6 -> 856
A7: 2 | B7: Аллаиховская | C7: 1393 | D7: 798 | E7: 798 | F7: 599 | J7: 133 | L7: -595
A8: 3 | B8: Амгинская | C8: 5583 | D8: 6561 | E8: 6467 | F8: 3125 | G8: 94 | I8: 15 | J8: 2327 | K8: 2 | L8: 978
A9: 4 | B9: Анабарская | C9: 993 | D9: 1473 | E9: 1462 | F9: 1278 | H9: 11 | J9: 127 | L9: 480
A10: 5 | B10: Булунская | C10: 2058 | D10: 1329 | E10: 1310 | F10: 1138 | G10: 19 | I10: 19 | J10: 382 | L10: -729
A11: 6 | B11: Верхневилюйская | C11: 6180 | D11: 5486 | E11: 5480 | F11: 4046 | G11: 6 | J11: 2797 | K11: 3 | L11: -694
A12: 7 | B12: Верхнеколымская | C12: 2955 | D12: 3302 | E12: 3302 | F12: 980 | J12: 209 | L12: 347
A13: 8 | B13: Верхоянская | C13: 7318 | D13: 6487 | E13: 6440 | F13: 4430 | G13: 6 | H13: 41 | I13: 66 | J13: 1794 | L13: -831
A14: 9 | B14: Вилюйская | C14: 6813 | D14: 6113 | E14: 6108 | F14: 5289 | G14: 5 | J14: 2022 | L14: -700
A15: 10 | B15: Горная | C15: 2418 | D15: 2347 | E15: 2342 | F15: 1677 | G15: 5 | J15: 790 | L15: -71
A16: 11 | B16: Жиганская | C16: 2600 | D16: 2864 | E16: 2862 | F16: 2125 | G16: 1 | H16: 1 | I16: 1 | J16: 3 | K16: 1 | L16: 264
A17: 12 | B17: Кобяйская | C17: 4674 | D17: 4177 | E17: 4177 | F17: 2004 | J17: 1403 | K17: 1 | L17: -497
A18: 13 | B18: Ленская | C18: 11634 | D18: 13189 | E18: 13179 | F18: 4753 | G18: 10 | J18: 351 | L18: 1555
A19: 14 | B19: Момская | C19: 1083 | D19: 3921 | E19: 3919 | F19: 3178 | G19: 2 | J19: 1546 | L19: 2838
A20: 15 | B20: Намская | C20: 6636 | D20: 10518 | E20: 10518 | F20: 5656 | J20: 2160 | L20: 3882
A21: 16 | B21: Нижнеколымская | C21: 1357 | D21: 3455 | E21: 3455 | F21: 2381 | J21: 0 | L21: 2098
A22: 17 | B22: Нюрбинская | C22: 3633 | D22: 4524 | E22: 4520 | F22: 1996 | G22: 4 | J22: 2078 | L22: 891
A23: 18 | B23: Оймяконская | C23: 1352 | D23: 686 | E23: 686 | F23: 576 | J23: 203 | K23: 11 | L23: -666
A24: 19 | B24: Олекминская | C24: 4283 | D24: 8849 | E24: 8849 | F24: 7425 | J24: 1198 | L24: 4566
A25: 20 | B25: Оленекская | C25: 1382 | D25: 1590 | E25: 1590 | F25: 1590 | J25: 290 | L25: 208
A26: 21 | B26: Среднеколымская | C26: 4885 | D26: 3076 | E26: 3076 | F26: 1988 | J26: 1416 | L26: -1809
A27: 22 | B27: Сунтарская | C27: 14828 | D27: 11786 | E27: 11756 | F27: 6295 | G27: 30 | I27: 10 | J27: 4166 | K27: 29 | L27: -3042
A28: 23 | B28: Таттинская | C28: 3776 | D28: 5086 | E28: 5085 | F28: 3069 | G28: 1 | J28: 1957 | L28: 1310
A29: 24 | B29: Томпонская | C29: 2921 | D29: 4027 | E29: 4027 | F29: 2146 | J29: 545 | K29: 1 | L29: 1106
A30: 25 | B30: Усть-Алданская | C30: 11461 | D30: 12528 | E30: 12520 | F30: 3989 | G30: 8 | J30: 4020 | K30: 31 | L30: 1067
A31: 26 | B31: Усть-Майская | C31: 4094 | D31: 5204 | E31: 5204 | F31: 1767 | J31: 214 | L31: 1110
A32: 27 | B32: Усть-Янская* | C32: 375 | D32: 1133 | E32: 1133 | F32: 939 | J32: 94 | L32: 758
A33: 28 | B33: Хангаласская | C33: 9911 | D33: 8118 | E33: 8118 | F33: 4420 | J33: 2415 | K33: 4 | L33: -1793
A34: 29 | B34: Чурапчинская | C34: 7141 | D34: 6366 | E34: 6363 | F34: 2122 | G34: 3 | J34: 2080 | L34: -775
A35: 30 | B35: Мирнинская | C35: 6085 | D35: 11264 | E35: 11264 | F35: 6247 | J35: 577 | K35: 14 | L35: 5179
A36: 31 | B36: Нерюнгринская | C36: 5786 | D36: 4661 | E36: 4659 | F36: 2793 | G36: 2 | J36: 71 | L36: -1125
A37: 32 | B37: Эвено-Бытантайская | C37: 157 | D37: 725 | E37: 725 | F37: 623 | J37: 166 | L37: 568
A38: 33 | B38: Якутская | C38: 20847 | D38: 13234 | E38: 13220 | F38: 11978 | G38: 14 | J38: 2142 | K38: 20 | L38: =D38-C38 -> -7613
A39: 34 | B39: Алданская | C39: 9922 | D39: 7578 | E39: 7424 | F39: 5592 | G39: 154 | J39: 287 | L39: =D39-C39 -> -2344
A40: 35 | B40: Мег.-Кангаласская | C40: 6869 | D40: 5890 | E40: 5887 | F40: 5128 | G40: 3 | J40: 3124 | L40: =D40-C40 -> -979
A41: 36 | B41: ГБ г.Нерюнгри | C41: 2786 | D41: 2210 | E41: 2205 | F41: 1052 | H41: 5 | I41: 110 | J41: 89 | K41: 10 | L41: -576
A42: 37 | B42: Бердигестях ДБ | C42: 944 | D42: 560 | E42: 560 | F42: 340 | J42: 192 | K42: 19 | L42: -384
A43: 38 | B43: Б-ка ГО "п. Жатай" | C43: 200 | D43: 130 | E43: 130 | F43: 130 | J43: 34 | L43: =D43-C43 -> -70
A44: 39 | B44: Алданский БИЦ | C44: 781 | D44: 2052 | E44: 2052 | F44: 1552 | I44: 7 | J44: 30 | K44: 2 | L44: 1271
A45: 40 | B45: Томмотский БИЦ | C45: 1801 | D45: 3451 | E45: 3451 | F45: 1990 | J45: 65 | L45: 1650
B46: Итого по МБ | C46: =SUM(C6:C45) -> 191019 | D46: 198708 | E46: 198283 | F46: 119751 | G46: 367 | H46: 58 | I46: 228 | J46: 43977 | K46: 148 | L46: 7689
B47: НБ РС(Я) | C47: 26000 | D47: 25168 | E47: 25116 | F47: 24577 | G47: 41 | H47: 11 | I47: 128 | J47: 3936 | K47: 1598 | L47: -832
B48: Филиал НБ "ДТК" | C48: 1417 | D48: 2497 | E48: 2497 | F48: 2497 | J48: 524 | L48: 1080
B49: РБС | C49: 4000 | D49: 5286 | E49: 1282 | F49: 917 | G49: 2948 | H49: 1056 | I49: 4430 | J49: 248 | K49: 6 | L49: 1286
B50: ВСЕГО | C50: =SUM(C46:C49) -> 222436 | D50: =SUM(D46:D49) -> 231659 | E50: 227178 | F50: =SUM(F46:F49) -> 147742 | G50: 3356 | H50: =SUM(H46:H49) -> 1125 | I50: =SUM(I46:I49) -> 4786 | J50: 48685 | K50: =SUM(K46:K49) -> 1752 | L50: 9223

Sheet т.5
F1: Таблица 5
A2: Относительные показатели библиотек республики
A4: № | B4: ЦБС | C4: Документообесп. жителей | D4: Документообесп. польз. | E4: Обращаемость библ.фонда | F4: Обновляемость библ.фонда
A5: 1 | B5: Абыйская | C5: =(т.4!I5/т.1!C8)/1000 -> 19.94342105 | D5: ='т.4.1'!D5/т.2!D6 -> 24.05109489 | E5: =т.6!D5/'т.4.1'!D5 -> 1.23986277 | F5: ='[1]т.4.2'!D6/'т.4.1'!D5*100 -> 2.371181632
A6: 2 | B6: Аллаиховская | C6: =(т.4!I6/т.1!C9)/1000 -> 32.86791667 | D6: ='т.4.1'!D6/т.2!D7 -> 60.21603053 | E6: =т.6!D6/'т.4.1'!D6 -> 0.5659013983 | F6: ='т.4.2'!D7/'т.4.1'!D6*100 -> 1.011624811
A7: 3 | B7: Амгинская | C7: =(т.4!I7/т.1!C10)/1000 -> 11.00711765 | D7: ='т.4.1'!D7/т.2!D8 -> 16.69679664 | E7: =т.6!D7/'т.4.1'!D7 -> 1.192607992 | F7: ='т.4.2'!D8/'т.4.1'!D7*100 -> 3.506287376
A8: 4 | B8: Анабарская | C8: =(т.4!I8/т.1!C11)/1000 -> 7.451714286 | D8: ='т.4.1'!D8/т.2!D9 -> 25.89970209 | E8: =т.6!D8/'т.4.1'!D8 -> 0.9391894483 | F8: ='т.4.2'!D9/'т.4.1'!D8*100 -> 5.647789579
A9: 5 | B9: Булунская | C9: =(т.4!I9/т.1!C12)/1000 -> 19.13142857 | D9: ='т.4.1'!D9/т.2!D10 -> 21.42096845 | E9: =т.6!D9/'т.4.1'!D9 -> 1.073904366 | F9: ='т.4.2'!D10/'т.4.1'!D9*100 -> 0.9021668296
A10: 6 | B10: Верхневилюйская | C10: =(т.4!I10/т.1!C13)/1000 -> 10.77361905 | D10: ='т.4.1'!D10/т.2!D11 -> 17.16325292 | E10: =т.6!D10/'т.4.1'!D10 -> 1.296606349 | F10: ='т.4.2'!D11/'т.4.1'!D10*100 -> 2.424794251
A11: 7 | B11: Верхнеколымская | C11: =(т.4!I11/т.1!C14)/1000 -> 28.75105263 | D11: ='т.4.1'!D11/т.2!D12 -> 39.37081081 | E11: =т.6!D11/'т.4.1'!D11 -> 0.6324894283 | F11: ='т.4.2'!D12/'т.4.1'!D11*100 -> 3.022314972
A12: 8 | B12: Верхоянская | C12: =(т.4!I12/т.1!C15)/1000 -> 21.513 | D12: ='т.4.1'!D12/т.2!D13 -> 29.6159141 | E12: =т.6!D12/'т.4.1'!D12 -> 0.7316366848 | F12: ='т.4.2'!D13/'т.4.1'!D12*100 -> 3.015386046
A13: 9 | B13: Вилюйская | C13: =(т.4!I13/т.1!C16)/1000 -> 10.84484 | D13: ='т.4.1'!D13/т.2!D14 -> 23.02122782 | E13: =т.6!D13/'т.4.1'!D13 -> 1.056620476 | F13: ='т.4.2'!D14/'т.4.1'!D13*100 -> 2.25471284
A14: 10 | B14: Горная | C14: =(т.4!I14/т.1!C17)/1000 -> 8.40768595 | D14: ='т.4.1'!D14/т.2!D15 -> 14.36500988 | E14: =т.6!D14/'т.4.1'!D14 -> 1.715480719 | F14: ='т.4.2'!D15/'т.4.1'!D14*100 -> 2.307019355
A15: 11 | B15: Жиганская | C15: =(т.4!I15/т.1!C18)/1000 -> 13.94428571 | D15: ='т.4.1'!D15/т.2!D16 -> 17.11955569 | E15: =т.6!D15/'т.4.1'!D15 -> 0.8396680668 | F15: ='т.4.2'!D16/'т.4.1'!D15*100 -> 4.890209336
A16: 12 | B16: Кобяйская | C16: =(т.4!I16/т.1!C19)/1000 -> 17.67362832 | D16: ='т.4.1'!D16/т.2!D17 -> 20.20149707 | E16: =т.6!D16/'т.4.1'!D16 -> 0.9090390162 | F16: ='т.4.2'!D17/'т.4.1'!D16*100 -> 2.091511777
A17: 13 | B17: Ленская | C17: =(т.4!I17/т.1!C20)/1000 -> 6.533271605 | D17: ='т.4.1'!D17/т.2!D18 -> 13.87688475 | E17: =т.6!D17/'т.4.1'!D17 -> 1.594719338 | F17: ='т.4.2'!D18/'т.4.1'!D17*100 -> 6.23069001
A18: 14 | B18: Момская | C18: =(т.4!I18/т.1!C21)/1000 -> 23.81486486 | D18: ='т.4.1'!D18/т.2!D19 -> 44.86507128 | E18: =т.6!D18/'т.4.1'!D18 -> 0.4210406855 | F18: ='т.4.2'!D19/'т.4.1'!D18*100 -> 4.449866652
A19: 15 | B19: Намская | C19: =(т.4!I19/т.1!C22)/1000 -> 8.044143426 | D19: ='т.4.1'!D19/т.2!D20 -> 12.79356229 | E19: =т.6!D19/'т.4.1'!D19 -> 1.534139311 | F19: ='т.4.2'!D20/'т.4.1'!D19*100 -> 5.209303247
A20: 16 | B20: Нижнеколымская | C20: =(т.4!I20/т.1!C23)/1000 -> 24.38833333 | D20: ='т.4.1'!D20/т.2!D21 -> 62.07939394 | E20: =т.6!D20/'т.4.1'!D20 -> 0.5267155451 | F20: ='т.4.2'!D21/'т.4.1'!D20*100 -> 3.373002314
A21: 17 | B21: Нюрбинская | C21: =(т.4!I21/т.1!C24)/1000 -> 14.36336207 | D21: ='т.4.1'!D21/т.2!D22 -> 18.2401883 | E21: =т.6!D21/'т.4.1'!D21 -> 0.8500075023 | F21: ='т.4.2'!D22/'т.4.1'!D21*100 -> 1.357620862
A22: 18 | B22: Оймяконская | C22: =(т.4!I22/т.1!C25)/1000 -> 14.85012987 | D22: ='т.4.1'!D22/т.2!D23 -> 18.36883534 | E22: =т.6!D22/'т.4.1'!D22 -> 0.9748307768 | F22: ='т.4.2'!D23/'т.4.1'!D22*100 -> 0.5999335351
A23: 19 | B23: Олекминская | C23: =(т.4!I23/т.1!C26)/1000 -> 12.263 | D23: ='т.4.1'!D23/т.2!D24 -> 18.48958932 | E23: =т.6!D23/'т.4.1'!D23 -> 1.089075539 | F23: ='т.4.2'!D24/'т.4.1'!D23*100 -> 3.436197932
A24: 20 | B24: Оленекская | C24: =(т.4!I24/т.1!C27)/1000 -> 12.91627907 | D24: ='т.4.1'!D24/т.2!D25 -> 18.02076574 | E24: =т.6!D24/'т.4.1'!D24 -> 0.7413935902 | F24: ='т.4.2'!D25/'т.4.1'!D24*100 -> 2.862801584
A25: 21 | B25: Среднеколымская | C25: =(т.4!I25/т.1!C28)/1000 -> 18.61865672 | D25: ='т.4.1'!D25/т.2!D26 -> 27.42251044 | E25: =т.6!D25/'т.4.1'!D25 -> 0.5272195278 | F25: ='т.4.2'!D26/'т.4.1'!D25*100 -> 2.465830294
A26: 22 | B26: Сунтарская* | C26: =(т.4!I26/т.1!C29)/1000 -> 10.37389381 | D26: ='т.4.1'!D26/т.2!D27 -> 14.39668407 | E26: =т.6!D26/'т.4.1'!D26 -> 1.271785029 | F26: ='т.4.2'!D27/'т.4.1'!D26*100 -> 5.027084666
A27: 23 | B27: Таттинская | C27: =(т.4!I27/т.1!C30)/1000 -> 12.40266272 | D27: ='т.4.1'!D27/т.2!D28 -> 27.56147272 | E27: =т.6!D27/'т.4.1'!D27 -> 0.7126595263 | F27: ='т.4.2'!D28/'т.4.1'!D27*100 -> 2.426468834
A28: 24 | B28: Томпонская | C28: =(т.4!I28/т.1!C31)/1000 -> 15.735625 | D28: ='т.4.1'!D28/т.2!D29 -> 24.69370884 | E28: =т.6!D28/'т.4.1'!D28 -> 0.8473663605 | F28: ='т.4.2'!D29/'т.4.1'!D28*100 -> 2.284965303
A29: 25 | B29: Усть-Алданская | C29: =(т.4!I29/т.1!C32)/1000 -> 18.22732143 | D29: ='т.4.1'!D29/т.2!D30 -> 20.41357932 | E29: =т.6!D29/'т.4.1'!D29 -> 0.9717065238 | F29: ='т.4.2'!D30/'т.4.1'!D29*100 -> 3.068392229
A30: 26 | B30: Усть-Майская | C30: =(т.4!I30/т.1!C33)/1000 -> 17.82305556 | D30: ='т.4.1'!D30/т.2!D31 -> 28.81787559 | E30: =т.6!D30/'т.4.1'!D30 -> 1.196858002 | F30: ='т.4.2'!D31/'т.4.1'!D30*100 -> 4.055296666
A31: 27 | B31: Усть-Янская | C31: =(т.4!I31/т.1!C34)/1000 -> 25.36941176 | D31: ='т.4.1'!D31/т.2!D32 -> 32.75337004 | E31: =т.6!D31/'т.4.1'!D31 -> 0.5985612595 | F31: ='т.4.2'!D32/'т.4.1'!D31*100 -> 0.6567659061
A32: 28 | B32: Хангаласская | C32: =(т.4!I32/т.1!C35)/1000 -> 9.183072464 | D32: ='т.4.1'!D32/т.2!D33 -> 6.131289673 | E32: =т.6!D32/'т.4.1'!D32 -> 1.241048432 | F32: ='т.4.2'!D33/'т.4.1'!D32*100 -> 2.562370587
A33: 29 | B33: Чурапчинская | C33: =(т.4!I33/т.1!C36)/1000 -> 12.67319635 | D33: ='т.4.1'!D33/т.2!D34 -> 20.01752614 | E33: =т.6!D33/'т.4.1'!D33 -> 1.00320671 | F33: ='т.4.2'!D34/'т.4.1'!D33*100 -> 2.293698634
A34: 30 | B34: Мирнинская | C34: =(т.4!I34/т.1!C37)/1000 -> 3.261636364 | D34: ='т.4.1'!D34/т.2!D35 -> 15.42578383 | E34: =т.6!D34/'т.4.1'!D34 -> 1.367257415 | F34: ='т.4.2'!D35/'т.4.1'!D34*100 -> 4.830043695
A35: 31 | B35: Нерюнгринская | C35: =(т.4!I35/т.1!C38)/1000 -> 2.107641921 | D35: ='т.4.1'!D35/т.2!D36 -> 11.01521491 | E35: =т.6!D35/'т.4.1'!D35 -> 2.093145482 | F35: ='т.4.2'!D36/'т.4.1'!D35*100 -> 3.219033806
A36: 32 | B36: Эвено-Бытантайская | C36: =(т.4!I36/т.1!C39)/1000 -> 14.49034483 | D36: ='т.4.1'!D36/т.2!D37 -> 29.80283688 | E36: =т.6!D36/'т.4.1'!D36 -> 0.9122602446 | F36: ='т.4.2'!D37/'т.4.1'!D36*100 -> 1.725286755
A37: 33 | B37: Якутская | C37: =(т.4!I37/т.1!C40)/1000 -> 1.197547872 | D37: ='т.4.1'!D37/т.2!D38 -> 6.303677675 | E37: =т.6!D37/'т.4.1'!D37 -> 3.617951577 | F37: ='т.4.2'!D37/'т.4.1'!D36*100 -> 1.725286755
A38: 34 | B38: Алданская | C38: =(т.4!I38/т.1!C41)/1000 -> 3.134154229 | D38: ='т.4.1'!D38/т.2!D39 -> 12.1932643 | E38: =т.6!D38/'т.4.1'!D38 -> 1.428246014 | F38: ='т.4.2'!D39/'т.4.1'!D38*100 -> 6.01461986
A39: 35 | B39: М.-Кангаласская | C39: =(т.4!I39/т.1!C42)/1000 -> 13.63140719 | D39: ='т.4.1'!D39/т.2!D40 -> 22.47452858 | E39: =т.6!D39/'т.4.1'!D39 -> 0.7741017244 | F39: ='т.4.2'!D40/'т.4.1'!D39*100 -> 1.293683792
A40: 36 | B40: ГБ г.Нерюнгри | D40: ='т.4.1'!D40/т.2!D41 -> 11.66566491 | E40: =т.6!D40/'т.4.1'!D40 -> 1.504871698 | F40: ='т.4.2'!D41/'т.4.1'!D40*100 -> 2.033324439
A41: 37 | B41: Бердигестях ДБ | D41: ='т.4.1'!D41/т.2!D42 -> 11.16095669 | E41: =т.6!D41/'т.4.1'!D41 -> 2.200857176 | F41: ='т.4.2'!D42/'т.4.1'!D41*100 -> 3.24336847
A42: 38 | B42: Б-ка ГО "Жатай" | C42: =(т.4!I42/т.1!C45)/1000 -> 1.818086957 | D42: ='т.4.1'!D42/т.2!D43 -> 8.607657472 | E42: =т.6!D42/'т.4.1'!D42 -> 2.232255596 | F42: ='т.4.2'!D43/'т.4.1'!D42*100 -> 0.6217715707
A43: 39 | B43: Алданский БИЦ | D43: ='т.4.1'!D43/т.2!D44 -> 9.889230769 | E43: =т.6!D43/'т.4.1'!D43 -> 2.008627029 | F43: ='т.4.2'!D44/'т.4.1'!D43*100 -> 5.804152288
A44: 40 | B44: Томмотский БИЦ | D44: ='т.4.1'!D44/т.2!D45 -> 9.166375164 | E44: =т.6!D44/'т.4.1'!D44 -> 2.578720156 | F44: ='т.4.2'!D45/'т.4.1'!D44*100 -> 8.230972881
B45: Итого по МБ | C45: =(т.4!I45/т.1!C48)/1000 -> 6.800933053 | D45: ='т.4.1'!D45/т.2!D46 -> 15.45553951 | E45: =т.6!D45/'т.4.1'!D45 -> 1.24487962 | F45: ='т.4.2'!D46*100/'т.4.1'!D45 -> 2.928217642
B46: НБ РС(Я) | D46: ='т.4.1'!D46/т.2!D47 -> 50.66929882 | E46: =т.6!D46/'т.4.1'!D46 -> 0.9040071571 | F46: ='т.4.2'!D47*100/'т.4.1'!D46 -> 1.474532559
B47: Филиал НБ "ДТК" | D47: ='т.4.1'!D47/т.2!D48 -> 13.90959688 | E47: =т.6!D47/'т.4.1'!D47 -> 0.7252673759 | F47: ='т.4.2'!D48*100/'т.4.1'!D47 -> 1.42733836
B48: РБС | D48: ='т.4.1'!D48/т.2!D49 -> 66.71666667 | E48: =т.6!D48/'т.4.1'!D48 -> 0.602981974 | F48: ='т.4.2'!D49*100/'т.4.1'!D48 -> 3.47502531
B49: ВСЕГО | C49: =(т.4!I49/т.1!C52)/1000 -> 8.839318501 | D49: ='т.4.1'!D49/т.2!D50 -> 18.08807503 | E49: =т.6!D49/'т.4.1'!D49 -> 1.15753596 | F49: ='т.4.2'!D50*100/'т.4.1'!D49 -> 2.626557392

Sheet т.6
F1: Таблица 6
A2: Выдача документов из фондов библиотек
A4: № | B4: ЦБС | C4: 2021 | D4: 2022 | E4: "+ -" | F4: в городе | G4: на селе
A5: 1 | B5: Абыйская | C5: 38484 | D5: 93963 | E5: =D5 - C5 -> 55479 | F5: =D5 - G5 -> 55461 | G5: 38502
A6: 2 | B6: Аллаиховская | C6: 43986 | D6: 44640 | E6: 654 | F6: 36234 | G6: 8406
A7: 3 | B7: Амгинская | C7: 137207 | D7: 223162 | E7: 85955 | F7: =D7-G7 -> 0 | G7: 223162
A8: 4 | B8: Анабарская | C8: 21101 | D8: 24495 | E8: 3394 | F8: =D8-G8 -> 0 | G8: 24495
A9: 5 | B9: Булунская | C9: 155877 | D9: 158199 | E9: 2322 | F9: 106570 | G9: 51629
A10: 6 | B10: Верхневилюйская | C10: 292662 | D10: 293352 | E10: 690 | F10: =D10-G10 -> 0 | G10: 293352
A11: 7 | B11: Верхнеколымская | C11: 107032 | D11: 69102 | E11: -37930 | F11: 36214 | G11: 32888
A12: 8 | B12: Верхоянская | C12: 119315 | D12: 157397 | E12: 38082 | F12: 96702 | G12: 60695
A13: 9 | B13: Вилюйская | C13: 188135 | D13: 286472 | E13: 98337 | F13: 156736 | G13: 129736
A14: 10 | B14: Горная | C14: 148524 | D14: 174521 | E14: 25997 | F14: 0 | G14: 174521
A15: 11 | B15: Жиганская | C15: 55958 | D15: 49176 | E15: -6782 | F15: 0 | G15: 49176
A16: 12 | B16: Кобяйская | C16: 149465 | D16: 181546 | E16: 32081 | F16: 110668 | G16: 70878
A17: 13 | B17: Ленская | C17: 313687 | D17: 337567 | E17: 23880 | F17: 261920 | G17: 75647
A18: 14 | B18: Момская | C18: 30430 | D18: 37100 | E18: 6670 | F18: 0 | G18: 37100
A19: 15 | B19: Намская | C19: 227189 | D19: 309755 | E19: 82566 | F19: =D19-G19 -> 0 | G19: 309755
A20: 16 | B20: Нижнеколымская | C20: 47825 | D20: 53952 | E20: 6127 | F20: 42406 | G20: 11546
A21: 17 | B21: Нюрбинская | C21: 189888 | D21: 283248 | E21: 93360 | F21: 124325 | G21: 158923
A22: 18 | B22: Оймяконская | C22: 102053 | D22: 111468 | E22: 9415 | F22: 68163 | G22: 43305
A23: 19 | B23: Олекминская | C23: 189950 | D23: 280462 | E23: 90512 | F23: 145835 | G23: 134627
A24: 20 | B24: Оленекская | C24: 38226 | D24: 41177 | E24: 2951 | F24: 0 | G24: 41177
A25: 21 | B25: Среднеколымская | C25: 56462 | D25: 65768 | E25: 9306 | F25: 31361 | G25: 34407
A26: 22 | B26: Сунтарская | C26: 243556 | D26: 298170 | E26: 54614 | F26: 0 | G26: 298170
A27: 23 | B27: Таттинская | C27: 153720 | D27: 149377 | E27: -4343 | F27: 0 | G27: 149377
A28: 24 | B28: Томпонская | C28: 138982 | D28: 149339 | E28: 10357 | F28: 75295 | G28: 74044
A29: 25 | B29: Усть-Алданская | C29: 392445 | D29: 396740 | E29: 4295 | F29: 0 | G29: 396740
A30: 26 | B30: Усть-Майская | C30: 150659 | D30: 153588 | E30: 2929 | F30: 110484 | G30: 43104
A31: 27 | B31: Усть-Янская* | C31: 45311 | D31: 103259 | E31: 57948 | F31: 87818 | G31: 15441
A32: 28 | B32: Хангаласская | C32: 301994 | D32: 393184 | E32: 91190 | F32: 224409 | G32: 168775
A33: 29 | B33: Чурапчинская | C33: 174619 | D33: 278433 | E33: 103814 | F33: 0 | G33: 278433
A34: 30 | B34: Мирнинская | C34: 343974 | D34: 318854 | E34: -25120 | F34: 302814 | G34: 16040
A35: 31 | B35: Нерюнгринская | C35: 302933 | D35: 303077 | E35: 144 | F35: 284498 | G35: 18579
A36: 32 | B36: Эвено-Бытантайcкая | C36: 38523 | D36: 38335 | E36: -188 | F36: 0 | G36: 38335
A37: 33 | B37: Якутская | C37: 1278109 | D37: 1629084 | E37: =D37 - C37 -> 350975 | F37: =D37 - G37 -> 1486413 | G37: 142671
A38: 34 | B38: Алданская | C38: 123397 | D38: 179949 | E38: =D38 - C38 -> 56552 | F38: =D38 - G38 -> 163593 | G38: 16356
A39: 35 | B39: Мегино-Кангаласская | C39: 213745 | D39: 352440 | E39: =D39 - C39 -> 138695 | F39: =D39 - G39 -> 14792 | G39: 337648
A40: 36 | B40: ГБ г.Нерюнгри | C40: 147295 | D40: 163563 | E40: 16268 | F40: 163563 | G40: 0
A41: 37 | B41: Бердигестях ДБ | C41: 13134 | D41: 38000 | F41: 0 | G41: 38000
A42: 38 | B42: Б-ка ГО "п. Жатай" | C42: 50275 | D42: 46672 | E42: =D42 - C42 -> -3603 | F42: 46672 | G42: 0
A43: 39 | B43: Алданский БИЦ | C43: 72659 | D43: 71013 | E43: =D43 - C43 -> -1646 | F43: =D43 - G43 -> 67973 | G43: 3040
A44: 40 | B44: Томмотский БИЦ | C44: 118485 | D44: 108118 | E44: -10367 | F44: 100448 | G44: 7670
B45: Итого по МБ | C45: =SUM(C5:C44) -> 6957271 | D45: =SUM(D5:D44) -> 8447717 | E45: 1490446 | F45: 4401367 | G45: =SUM(G5:G44) -> 4046350
B46: НБ РС(Я) | C46: 1670122 | D46: 1543001 | E46: -127121 | F46: 1543001 | G46: 0
B47: Филиал НБ "ДТК" | C47: 193030 | D47: 126879 | E47: -66151 | F47: 126879 | G47: 0
B48: РБС | C48: 90846 | D48: 91722 | E48: 876 | F48: 91722 | G48: 0
B49: Итого по РС(Я) | C49: =SUM(C45:C48) -> 8911269 | D49: =SUM(D45:D48) -> 10209319 | E49: 1298050 | F49: =SUM(F45:F48) -> 6162969 | G49: =SUM(G45:G48) -> 4046350

Sheet т.6.1
G1: Таблица 6.1
A2: Выдача документов из фондов библиотек
A4: № | B4: ЦБС | C4: 2021 | D4: 2022 | E4: в том числе
E5: из фонда на физ. нос. | F5: из ЭБ | G5: инсталл. док. | H5: сетев. удал. лиц. док.
A6: 1 | B6: Абыйская | C6: 38484 | D6: 93963 | E6: 93963
A7: 2 | B7: Аллаиховская | C7: 43986 | D7: 44640 | E7: 44640
A8: 3 | B8: Амгинская | C8: 137207 | D8: 223162 | E8: 220209 | F8: 526 | H8: 2427
A9: 4 | B9: Анабарская | C9: 21101 | D9: 24495 | E9: 24495
A10: 5 | B10: Булунская | C10: 155877 | D10: 158199 | E10: 158199
A11: 6 | B11: Верхневилюйская | C11: 292662 | D11: 293352 | E11: 292043 | F11: 728 | G11: 413 | H11: 168
A12: 7 | B12: Верхнеколымская | C12: 107032 | D12: 69102 | E12: 68766 | H12: 336
A13: 8 | B13: Верхоянская | C13: 119315 | D13: 157397 | E13: 157179 | G13: 218
A14: 9 | B14: Вилюйская | C14: 188135 | D14: 286472 | E14: 272437 | F14: 14035
A15: 10 | B15: Горная | C15: 148524 | D15: 174521 | E15: 173153 | G15: 29 | H15: 1339
A16: 11 | B16: Жиганская | C16: 55958 | D16: 49176 | E16: 48887 | H16: 289
A17: 12 | B17: Кобяйская | C17: 149465 | D17: 181546 | E17: 181503 | F17: 43
A18: 13 | B18: Ленская | C18: 313687 | D18: 337567 | E18: 331216 | G18: 68 | H18: 6283
A19: 14 | B19: Момская | C19: 30430 | D19: 37100 | E19: 37100
A20: 15 | B20: Намская | C20: 227189 | D20: 309755 | E20: 308414 | H20: 1341
A21: 16 | B21: Нижнеколымская | C21: 47825 | D21: 53952 | E21: 53952
A22: 17 | B22: Нюрбинская | C22: 189888 | D22: 283248 | E22: 283248
A23: 18 | B23: Оймяконская | C23: 102053 | D23: 111468 | E23: 111468
A24: 19 | B24: Олекминская | C24: 189950 | D24: 280462 | E24: 280462
A25: 20 | B25: Оленекская | C25: 38226 | D25: 41177 | E25: 41177
A26: 21 | B26: Среднеколымская | C26: 56462 | D26: 65768 | E26: 65768
A27: 22 | B27: Сунтарская | C27: 243556 | D27: 298170 | E27: 297918 | G27: 41 | H27: 211
A28: 23 | B28: Таттинская | C28: 153720 | D28: 149377 | E28: 142890 | F28: 4724 | G28: 4 | H28: 1759
A29: 24 | B29: Томпонская | C29: 138982 | D29: 149339 | E29: 143310 | F29: 5781 | G29: 248
A30: 25 | B30: Усть-Алданская | C30: 392445 | D30: 396740 | E30: 373402 | F30: 19546 | G30: 3758 | H30: 34
A31: 26 | B31: Усть-Майская | C31: 150659 | D31: 153588 | E31: 153588
A32: 27 | B32: Усть-Янская* | C32: 45311 | D32: 103259 | E32: 103259
A33: 28 | B33: Хангаласская | C33: 301994 | D33: 393184 | E33: 299737 | F33: 92136 | G33: 992 | H33: 319
A34: 29 | B34: Чурапчинская | C34: 174619 | D34: 278433 | E34: 278433
A35: 30 | B35: Мирнинская | C35: 343974 | D35: 318854 | E35: 317349 | G35: 389 | H35: 1116
A36: 31 | B36: Нерюнгринская | C36: 302933 | D36: 303077 | E36: 283992 | F36: 3693 | G36: 749 | H36: 14643
A37: 32 | B37: Эвено-Бытантайcкая | C37: 38523 | D37: 38335 | E37: 38335
A38: 33 | B38: Якутская | C38: 1278109 | D38: 1629084 | E38: 1605846 | G38: 1305 | H38: 21933
A39: 34 | B39: Алданская | C39: 123397 | D39: 179949 | E39: 172705 | F39: 1748 | G39: 3490 | H39: 2006
A40: 35 | B40: Мег.-Кангаласская | C40: 213745 | D40: 352440 | E40: 352365 | H40: 75
A41: 36 | B41: ГБ г.Нерюнгри | C41: 147295 | D41: 163563 | E41: 151962 | G41: 10676 | H41: 925
A42: 37 | B42: Бердигестях ДБ | C42: 13134 | D42: 38000 | E42: 37876 | H42: 124
A43: 38 | B43: Б-ка ГО "п. Жатай" | C43: 50275 | D43: 46672 | E43: 46672
A44: 39 | B44: Алданский БИЦ | C44: 72659 | D44: 71013 | E44: 71013
A45: 40 | B45: Томмотский БИЦ | C45: 118485 | D45: 108118 | E45: 108118
B46: Итого по МБ | C46: =SUM(C6:C45) -> 6957271 | D46: 8447717 | E46: 8227049 | F46: 142960 | G46: 22380 | H46: 55328
B47: НБ РС(Я) | C47: 1670122 | D47: 1543001 | E47: 514076 | F47: 991138 | G47: 555 | H47: 37232
B48: Филиал НБ "ДТК" | C48: 193030 | D48: 126879 | E48: 126879
B49: РБС | C49: 90846 | D49: 91722 | E49: 62113 | F49: 12337 | H49: 17272
B50: Итого по РС(Я) | C50: =SUM(C46:C49) -> 8911269 | D50: 10209319 | E50: 8930117 | F50: 1146435 | G50: 22935 | H50: 109832

Sheet т.7
I1: Таблица 7
A2: Общие сведения.
A3: Характеристика помещений библиотек республики.
A5: № | B5: ЦБС | C5: Кол-во биб-к всего | D5: Общая площадь (кв.м.) 2021 | E5: Общая площадь (кв.м.) 2022 | F5: "+ -" | G5: требуют кап.ремонт (ед.) | H5: аварий- ных (ед.) | I5: арендо- ванных (ед.) | J5: прочие
A6: 1 | B6: Абыйская | C6: 7 | D6: 678.3 | E6: 678.3 | F6: =E6-D6 -> 0
A7: 2 | B7: Аллаиховская | C7: 6 | D7: 401.3 | E7: 401.3 | F7: =E7-D7 -> 0
A8: 3 | B8: Амгинская | C8: 16 | D8: 1365.7 | E8: 1321.6 | F8: -44.1 | H8: 2
A9: 4 | B9: Анабарская | C9: 3 | D9: 251 | E9: 251 | F9: 0 | I9: 1
A10: 5 | B10: Булунская | C10: 8 | D10: 862.8 | E10: 862.8 | F10: 0 | G10: 5
A11: 6 | B11: Верхневилюйская | C11: 23 | D11: 2363.8 | E11: 2399.3 | F11: 35.5
A12: 7 | B12: Верхнеколымская | C12: 7 | D12: 1255.2 | E12: 822.3 | F12: -432.9 | I12: 1
A13: 8 | B13: Верхоянская | C13: 17 | D13: 1222.2 | E13: 1222.2 | F13: 0
A14: 9 | B14: Вилюйская | C14: 24 | D14: 1772.8 | E14: 2227.2 | F14: 454.4 | H14: 1
A15: 10 | B15: Горная | C15: 9 | D15: 856.3 | E15: 856.3 | F15: 0
A16: 11 | B16: Жиганская | C16: 5 | D16: 270.8 | E16: 270.8 | F16: 0
A17: 12 | B17: Кобяйская | C17: 17 | D17: 1516.3 | E17: 1516.3 | F17: 0 | I17: 10
A18: 13 | B18: Ленская | C18: 21 | D18: 2376.7 | E18: 2376.7 | F18: 0 | I18: 5
A19: 14 | B19: Момская | C19: 7 | D19: 591.9 | E19: 591.9 | F19: 0
A20: 15 | B20: Намская | C20: 20 | D20: 1721.8 | E20: 1903.8 | F20: 182 | G20: 2 | H20: 1
A21: 16 | B21: Нижнеколымская | C21: 6 | D21: 605.7 | E21: 605.7 | F21: 0 | G21: 1
A22: 17 | B22: Нюрбинская | C22: 23 | D22: 1650.9 | E22: 1624.9 | F22: -26
A23: 18 | B23: Оймяконская | C23: 9 | D23: 803.3 | E23: 803.3 | F23: 0 | I23: 2
A24: 19 | B24: Олекминская | C24: 27 | D24: 1499.6 | E24: 1512.1 | F24: 12.5
A25: 20 | B25: Оленекская | C25: 5 | D25: 374.9 | E25: 374.9 | F25: 0 | G25: 1
A26: 21 | B26: Среднеколымская | C26: 11 | D26: 588.5 | E26: 588.5 | F26: 0
A27: 22 | B27: Сунтарская | C27: 22 | D27: 1802.5 | E27: 1802.5 | F27: 0 | H27: 2
A28: 23 | B28: Таттинская | C28: 15 | D28: 1614.2 | E28: 1589.6 | F28: -24.6 | G28: 1 | H28: 1
A29: 24 | B29: Томпонская | C29: 13 | D29: 2202.7 | E29: 2202.7 | F29: 0 | H29: 1 | I29: 1
A30: 25 | B30: Усть-Алданская | C30: 28 | D30: 2901.9 | E30: 3374.4 | F30: 472.5
A31: 26 | B31: Усть-Майская | C31: 10 | D31: 623.1 | E31: 623.1 | F31: 0 | I31: 7
A32: 27 | B32: Усть-Янская* | C32: 11 | D32: 555 | E32: 599.1 | F32: =E32-D32 -> 44.1 | I32: 11
A33: 28 | B33: Хангаласская | C33: 24 | D33: 2648.6 | E33: 2676.6 | F33: =E33-D33 -> 28 | G33: 1
A34: 29 | B34: Чурапчинская | C34: 19 | D34: 1719.4 | E34: 1719.4 | F34: =E34-D34 -> 0
A35: 30 | B35: Мирнинская | C35: 11 | D35: 2679.1 | E35: 2679.1 | F35: =E35-D35 -> 0 | I35: 8
A36: 31 | B36: Нерюнгринская | C36: 8 | D36: 1523.3 | E36: 1523.3 | F36: =E36-D36 -> 0
A37: 32 | B37: Эвено-Бытантайская | C37: 3 | D37: 167 | E37: 167 | F37: =E37-D37 -> 0
A38: 33 | B38: Якутская | C38: 18 | D38: 8059.1 | E38: 8059.1 | F38: 0 | H38: 1 | I38: 2
A39: 34 | B39: Алданская | C39: 9 | D39: 1168 | E39: 1175.5 | F39: 7.5 | G39: 2 | I39: 2
A40: 35 | B40: Мегино-Кангаласская | C40: 31 | D40: 2678.1 | E40: 2712.3 | F40: 34.2 | H40: 4
A41: 36 | B41: ГБ г.Нерюнгри | C41: 1 | D41: 1527.5 | E41: 1527.5 | F41: 0
A42: 37 | B42: Бердигестях ДБ | C42: 1 | D42: 192.2 | E42: 192.2 | F42: 0
A43: 38 | B43: Б-ка ГО "п. Жатай" | C43: 1 | D43: 270 | E43: 270 | F43: 0
A44: 39 | B44: Алданский БИЦ | C44: 2 | D44: 427.2 | E44: 427.2 | F44: 0 | I44: 1
A45: 40 | B45: Томмотский БИЦ | C45: 3 | D45: 345 | E45: 345 | F45: 0
B46: Итого по МБ | C46: =SUM(C6:C45) -> 501 | D46: =SUM(D6:D45) -> 56133.7 | E46: =SUM(E6:E45) -> 56876.8 | F46: 743.1 | G46: =SUM(G6:G45) -> 13 | H46: =SUM(H6:H45) -> 13 | I46: =SUM(I6:I45) -> 51 | J46: =SUM(J6:J43) -> 0
B47: НБ РС(Я) | C47: 1 | D47: 9010.5 | E47: 9010.5 | F47: 0 | G47: 1
B48: Филиал НБ "ДТК" | C48: 1 | D48: 1274.4 | E48: 988.6 | F48: -285.8 | I48: 1
B49: РБС | C49: 1 | D49: 328.5 | E49: 328.5 | F49: 0
B50: Итого по РС(Я) | C50: =SUM(C46:C49) -> 504 | D50: =SUM(D46:D49) -> 66747.1 | E50: 67204.4 | F50: 457.3 | G50: 14 | H50: 13 | I50: 52 | J50: 0

Sheet т.8
I1: Таблица 8
A2: Материально-техническая база библиотек республики.
A3: Количество технических средств, средств связи.
A4: № | B4: ЦБС | C4: Всего | D4: число | E4: число | F4: число | G4: число библиотек, имеющих
C5: кол-во | D5: посад. | E5: посад. | F5: посад. | G5: здание | H5: спец. | I5: Интернет | J5: доступ
C6: биб-к | D6: мест | E6: мест | F6: мест | G6: для лиц | H6: оборуд. | I6: сайт | J6: в
D7: для польз. | E7: комп. | F7: с Инт. | G7: с ОВЗ | H7: для инвал. | I7: или стр. | J7: Инт.
A8: 1 | B8: Абыйская | C8: 7 | D8: 74 | E8: 9 | F8: 9 | G8: 2 | H8: 2 | I8: 1 | J8: 7
A9: 2 | B9: Аллаиховская | C9: 6 | D9: 56 | E9: 6 | F9: 4 | I9: 1 | J9: 4
A10: 3 | B10: Амгинская | C10: 16 | D10: 144 | E10: 34 | F10: 32 | G10: 8 | H10: 2 | I10: 2 | J10: 16
A11: 4 | B11: Анабарская | C11: 3 | D11: 30 | E11: 7 | F11: 7 | G11: 2 | H11: 1 | J11: 3
A12: 5 | B12: Булунская | C12: 8 | D12: 122 | E12: 10 | F12: 8 | G12: 4 | I12: 1 | J12: 8
A13: 6 | B13: Верхневилюйская | C13: 23 | D13: 350 | E13: 57 | F13: 48 | G13: 15 | H13: 1 | I13: 23 | J13: 23
A14: 7 | B14: Верхнеколымская | C14: 7 | D14: 83 | E14: 17 | F14: 12 | I14: 1 | J14: 7
A15: 8 | B15: Верхоянская | C15: 17 | D15: 166 | E15: 15 | F15: 10 | G15: 2 | I15: 1 | J15: 10
A16: 9 | B16: Вилюйская | C16: 24 | D16: 271 | E16: 37 | F16: 26 | G16: 15 | I16: 1 | J16: 23
A17: 10 | B17: Горная | C17: 9 | D17: 94 | E17: 15 | F17: 11 | G17: 3 | H17: 1 | I17: 1 | J17: 9
A18: 11 | B18: Жиганская | C18: 5 | D18: 37 | E18: 9 | F18: 9 | I18: 1 | J18: 5
A19: 12 | B19: Кобяйская | C19: 17 | D19: 220 | E19: 39 | F19: 38 | I19: 2 | J19: 17
A20: 13 | B20: Ленская | C20: 21 | D20: 196 | E20: 25 | F20: 25 | G20: 10 | I20: 1 | J20: 21
A21: 14 | B21: Момская | C21: 7 | D21: 65 | E21: 9 | F21: 6 | G21: 1 | I21: 1 | J21: 6
A22: 15 | B22: Намская | C22: 20 | D22: 283 | E22: 38 | F22: 34 | G22: 11 | H22: 1 | I22: 20 | J22: 20
A23: 16 | B23: Нижнеколымская | C23: 6 | D23: 48 | E23: 6 | F23: 5 | I23: 1 | J23: 6
A24: 17 | B24: Нюрбинская | C24: 23 | D24: 208 | E24: 24 | F24: 22 | G24: 23 | I24: 1 | J24: 22
A25: 18 | B25: Оймяконская | C25: 9 | D25: 96 | E25: 5 | F25: 5 | I25: 1 | J25: 8
A26: 19 | B26: Олекминская | C26: 27 | D26: 289 | E26: 61 | F26: 50 | G26: 11 | H26: 2 | I26: 22 | J26: 26
A27: 20 | B27: Оленекская | C27: 5 | D27: 34 | E27: 8 | F27: 6 | I27: 2 | J27: 5
A28: 21 | B28: Среднеколымская | C28: 11 | D28: 60 | E28: 10 | F28: 10 | I28: 1 | J28: 10
A29: 22 | B29: Сунтарская | C29: 22 | D29: 231 | E29: 31 | F29: 27 | G29: 14 | I29: 21 | J29: 22
A30: 23 | B30: Таттинская | C30: 15 | D30: 159 | E30: 27 | F30: 25 | G30: 1 | I30: 15 | J30: 15
A31: 24 | B31: Томпонская | C31: 13 | D31: 159 | E31: 28 | F31: 26 | G31: 2 | H31: 1 | I31: 1 | J31: 12
A32: 25 | B32: Усть-Алданская | C32: 28 | D32: 353 | E32: 58 | F32: 44 | G32: 11 | H32: 2 | I32: 27 | J32: 28
A33: 26 | B33: Усть-Майская | C33: 10 | D33: 56 | E33: 3 | F33: 3 | I33: 1 | J33: 10
A34: 27 | B34: Усть-Янская* | C34: 11 | D34: 61 | E34: 2 | F34: 2 | I34: 1 | J34: 9
A35: 28 | B35: Хангаласская | C35: 24 | D35: 275 | E35: 71 | F35: 59 | G35: 9 | I35: 6 | J35: 23
A36: 29 | B36: Чурапчинская | C36: 19 | D36: 233 | E36: 40 | F36: 34 | G36: 1 | H36: 1 | I36: 2 | J36: 18
A37: 30 | B37: Мирнинская | C37: 11 | D37: 258 | E37: 23 | F37: 22 | G37: 4 | H37: 4 | I37: 1 | J37: 11
A38: 31 | B38: Нерюнгринская | C38: 8 | D38: 143 | E38: 33 | F38: 32 | G38: 4 | I38: 8 | J38: 8
A39: 32 | B39: Эвено-Бытантайская | C39: 3 | D39: 10 | E39: 1 | F39: 1 | I39: 1 | J39: 3
A40: 33 | B40: Якутская | C40: 18 | D40: 657 | E40: 117 | F40: 115 | G40: 12 | H40: 10 | I40: 3 | J40: 18
A41: 34 | B41: Алданская | C41: 9 | D41: 117 | E41: 27 | F41: 25 | G41: 3 | H41: 1 | I41: 1 | J41: 8
A42: 35 | B42: Мег.-Кангаласская | C42: 31 | D42: 304 | E42: 66 | F42: 60 | G42: 16 | I42: 31 | J42: 31
A43: 36 | B43: ГБ г.Нерюнгри | C43: 1 | D43: 232 | E43: 13 | F43: 13 | G43: 1 | H43: 1 | I43: 1 | J43: 1
A44: 37 | B44: Бердигестях ДБ | C44: 1 | D44: 36 | E44: 6 | F44: 6 | G44: 1 | I44: 1 | J44: 1
A45: 38 | B45: Б-ка ГО "п. Жатай" | C45: 1 | D45: 27 | G45: 1 | I45: 1 | J45: 1
A46: 39 | B46: Алданский БИЦ | C46: 2 | D46: 71 | E46: 5 | F46: 4 | G46: 1 | I46: 1 | J46: 1
A47: 40 | B47: Томмотский БИЦ | C47: 3 | D47: 69 | E47: 11 | F47: 11 | I47: 1 | J47: 3
B48: ИТОГО по МБ | C48: =SUM(C8:C47) -> 501 | D48: =SUM(D8:D47) -> 6377 | E48: =SUM(E8:E47) -> 1003 | F48: =SUM(F8:F47) -> 886 | G48: =SUM(G8:G46) -> 188 | H48: =SUM(H8:H45) -> 30 | I48: =SUM(I8:I47) -> 209 | J48: =SUM(J8:J47) -> 479
B49: НБ РС(Я) | C49: 1 | D49: 404 | E49: 49 | F49: 38 | G49: 1 | H49: 1 | I49: 1 | J49: 1
B50: Филиал НБ "ДТК" | C50: 1 | D50: 96 | E50: 7 | F50: 7 | H50: 1 | I50: 1 | J50: 1
B51: РБС | C51: 1 | D51: 16 | E51: 8 | F51: 8 | H51: 1 | I51: 1 | J51: 1
B52: Итого по РС(Я) | C52: =SUM(C48:C51) -> 504 | D52: 6893 | E52: 1067 | F52: =SUM(F48:F51) -> 939 | G52: 189 | H52: 33 | I52: 212 | J52: 482

Sheet т.8.1
I1: Таблица 8.1
A2: Материально-техническая база библиотек на селе.
A3: Количество технических средств, средств связи.
A4: № | B4: ЦБС | C4: Всего | D4: число | E4: число | F4: число | G4: число библиотек, имеющих
C5: кол-во | D5: посад. | E5: посад. | F5: посад. | G5: здание | H5: спец. | I5: Интернет | J5: доступ
C6: биб-к | D6: мест | E6: мест | F6: мест | G6: для лиц | H6: оборуд. | I6: сайт | J6: в
D7: для польз. | E7: компьют. | F7: с Инт. | G7: с ОВЗ, пандус | H7: для инвал. | J7: Интернет
A8: 1 | B8: Абыйская | C8: 5 | D8: 48 | E8: 5 | F8: 5 | J8: 5
A9: 2 | B9: Аллаиховская | C9: 4 | D9: 30 | E9: 3 | F9: 1 | J9: 2
A10: 3 | B10: Амгинская | C10: 16 | D10: 144 | E10: 34 | F10: 32 | G10: 8 | H10: 2 | I10: 2 | J10: 16
A11: 4 | B11: Анабарская | C11: 3 | D11: 30 | E11: 7 | F11: 7 | G11: 2 | H11: 1 | J11: 3
A12: 5 | B12: Булунская | C12: 6 | D12: 48 | E12: 5 | F12: 3 | G12: 2 | J12: 6
A13: 6 | B13: Верхневилюйская | C13: 23 | D13: 350 | E13: 57 | F13: 48 | G13: 15 | H13: 1 | I13: 23 | J13: 23
A14: 7 | B14: Верхнеколымская | C14: 5 | D14: 55 | E14: 9 | F14: 5 | J14: 5
A15: 8 | B15: Верхоянская | C15: 13 | D15: 101 | E15: 8 | F15: 4 | J15: 7
A16: 9 | B16: Вилюйская | C16: 20 | D16: 128 | E16: 21 | F16: 14 | G16: 13 | J16: 19
A17: 10 | B17: Горная | C17: 9 | D17: 94 | E17: 15 | F17: 11 | G17: 3 | H17: 1 | I17: 1 | J17: 9
A18: 11 | B18: Жиганская | C18: 5 | D18: 37 | E18: 9 | F18: 9 | I18: 1 | J18: 5
A19: 12 | B19: Кобяйская | C19: 15 | D19: 174 | E19: 24 | F19: 23 | I19: 1 | J19: 15
A20: 13 | B20: Ленская | C20: 14 | D20: 43 | E20: 14 | F20: 14 | G20: 7 | J20: 14
A21: 14 | B21: Момская | C21: 7 | D21: 65 | E21: 9 | F21: 6 | G21: 1 | I21: 1 | J21: 6
A22: 15 | B22: Намская | C22: 20 | D22: 283 | E22: 38 | F22: 34 | G22: 11 | H22: 1 | I22: 20 | J22: 20
A23: 16 | B23: Нижнеколымская | C23: 3 | D23: 19 | E23: 3 | F23: 3 | J23: 3
A24: 17 | B24: Нюрбинская | C24: 20 | D24: 146 | E24: 21 | F24: 19 | G24: 20 | J24: 19
A25: 18 | B25: Оймяконская | C25: 6 | D25: 56 | E25: 1 | F25: 1 | J25: 5
A26: 19 | B26: Олекминская | C26: 25 | D26: 204 | E26: 48 | F26: 37 | G26: 9 | H26: 1 | I26: 20 | J26: 24
A27: 20 | B27: Оленекская | C27: 5 | D27: 34 | E27: 8 | F27: 6 | I27: 2 | J27: 5
A28: 21 | B28: Среднеколымская | C28: 9 | D28: 38 | E28: 8 | F28: 8 | J28: 8
A29: 22 | B29: Сунтарская | C29: 22 | D29: 231 | E29: 31 | F29: 27 | G29: 14 | I29: 21 | J29: 22
A30: 23 | B30: Таттинская | C30: 15 | D30: 159 | E30: 27 | F30: 25 | G30: 1 | I30: 15 | J30: 15
A31: 24 | B31: Томпонская | C31: 10 | D31: 79 | E31: 6 | F31: 4 | J31: 9
A32: 25 | B32: Усть-Алданская | C32: 28 | D32: 353 | E32: 58 | F32: 44 | G32: 11 | H32: 2 | I32: 27 | J32: 28
A33: 26 | B33: Усть-Майская | C33: 5 | D33: 12 | J33: 5
A34: 27 | B34: Усть-Янская* | C34: 7 | D34: 21 | J34: 5
A35: 28 | B35: Хангаласская | C35: 21 | D35: 188 | E35: 45 | F35: 35 | G35: 6 | I35: 4 | J35: 20
A36: 29 | B36: Чурапчинская | C36: 19 | D36: 233 | E36: 40 | F36: 34 | G36: 1 | H36: 1 | I36: 2 | J36: 18
A37: 30 | B37: Мирнинская | C37: 3 | D37: 17 | E37: 4 | F37: 3 | J37: 3
A38: 31 | B38: Нерюнгринская | C38: 2 | D38: 18 | E38: 4 | F38: 3 | I38: 2 | J38: 2
A39: 32 | B39: Эвено-Бытантайская | C39: 3 | D39: 10 | E39: 1 | F39: 1 | I39: 1 | J39: 3
A40: 33 | B40: Якутская | C40: 4 | D40: 92 | E40: 18 | F40: 17 | G40: 4 | H40: 3 | I40: 1 | J40: 4
A41: 34 | B41: Алданская | C41: 5 | D41: 32 | E41: 7 | F41: 5 | G41: 1 | J41: 4
A42: 35 | B42: Мег.-Кангаласская | C42: 30 | D42: 298 | E42: 65 | F42: 59 | G42: 15 | I42: 30 | J42: 30
A43: 36 | B43: Бердигестях ДБ | C43: 1 | D43: 36 | E43: 6 | F43: 6 | G43: 1 | I43: 1 | J43: 1
A44: 37 | B44: Алданский БИЦ | C44: 1 | D44: 11 | E44: 1
A45: 38 | B45: Томмотский БИЦ | C45: 1 | D45: 6 | E45: 1 | F45: 1 | J45: 1
B46: Итого по РС(Я) | C46: =SUM(C8:C45) -> 410 | D46: 3923 | E46: 661 | F46: 554 | G46: 145 | H46: 13 | I46: 175 | J46: 389

Sheet т.9
J1: Таблица 9
A2: Персонал библиотек республики.
C4: Штат | D4: Числ. | E4: из них | F4: из них имеют | J4: со стажем работы
A5: № | B5: ЦБС | C5: библ. | D5: раб-ков | E5: основной | F5: высшее | G5: из них | H5: среднее | I5: из них | J5: до 3 | K5: от 3 до | L5: свыше
D6: всего | E6: персонал | F6: обр. | G6: библ. | H6: спец. | I6: библ. | J6: лет | K6: 10 лет | L6: 10 лет
A7: 1 | B7: Абыйская | C7: 21 | D7: 21 | E7: 14 | F7: 11 | G7: 5 | H7: 2 | I7: 2 | J7: 6 | K7: 4 | L7: 4
A8: 2 | B8: Аллаиховская | C8: 16 | D8: 17 | E8: 11 | F8: 8 | G8: 6 | H8: 2 | J8: 3 | K8: 2 | L8: 6
A9: 3 | B9: Амгинская | C9: 57.5 | D9: 61 | E9: 41 | F9: 35 | G9: 25 | H9: 6 | I9: 4 | J9: 3 | K9: 8 | L9: 30
A10: 4 | B10: Анабарская | C10: 8 | D10: 8 | E10: 5 | F10: 2 | G10: 1 | H10: 2 | I10: 2 | J10: 1 | K10: 2 | L10: 2
A11: 5 | B11: Булунская | C11: 28.5 | D11: 31 | E11: 21 | F11: 9 | G11: 9 | H11: 12 | I11: 8 | J11: 3 | K11: 8 | L11: 10
A12: 6 | B12: Верхневилюйская | C12: 57.5 | D12: 65 | E12: 42 | F12: 34 | G12: 31 | H12: 8 | I12: 6 | J12: 9 | K12: 10 | L12: 23
A13: 7 | B13: Верхнеколымская | C13: 17 | D13: 17 | E13: 13 | F13: 6 | G13: 5 | H13: 5 | I13: 3 | J13: 3 | K13: 2 | L13: 8
A14: 8 | B14: Верхоянская | C14: 52 | D14: 58 | E14: 36 | F14: 20 | G14: 20 | H14: 16 | I14: 11 | J14: 12 | K14: 9 | L14: 15
A15: 9 | B15: Вилюйская | C15: 53 | D15: 59 | E15: 41 | F15: 32 | G15: 30 | H15: 9 | I15: 6 | J15: 4 | K15: 9 | L15: 28
A16: 10 | B16: Горная | C16: 24 | D16: 25 | E16: 24 | F16: 20 | G16: 14 | H16: 2 | I16: 1 | J16: 6 | K16: 8 | L16: 10
A17: 11 | B17: Жиганская | C17: 9 | D17: 9 | E17: 7 | F17: 6 | G17: 6 | H17: 1 | I17: 1 | J17: 1 | K17: 4 | L17: 2
A18: 12 | B18: Кобяйская | C18: 48.5 | D18: 53 | E18: 35 | F18: 20 | G18: 16 | H18: 15 | I18: 11 | J18: 7 | K18: 9 | L18: 19
A19: 13 | B19: Ленская | C19: 92 | D19: 92 | E19: 55 | F19: 21 | G19: 8 | H19: 30 | I19: 13 | J19: 5 | K19: 23 | L19: 27
A20: 14 | B20: Момская | C20: 20 | D20: 22 | E20: 14 | F20: 8 | G20: 8 | H20: 5 | I20: 4 | J20: 4 | K20: 2 | L20: 8
A21: 15 | B21: Намская | C21: 56.5 | D21: 65 | E21: 38 | F21: 32 | G21: 28 | H21: 6 | I21: 1 | J21: 6 | K21: 9 | L21: 23
A22: 16 | B22: Нижнеколымская | C22: 15 | D22: 15 | E22: 14 | F22: 6 | G22: 6 | H22: 8 | I22: 4 | J22: 5 | K22: 2 | L22: 7
A23: 17 | B23: Нюрбинская | C23: 63.5 | D23: 68 | E23: 50 | F23: 40 | G23: 31 | H23: 7 | I23: 6 | J23: 9 | K23: 16 | L23: 25
A24: 18 | B24: Оймяконская | C24: 27.5 | D24: 23 | E24: 20 | F24: 11 | G24: 10 | H24: 9 | I24: 7 | J24: 3 | K24: 5 | L24: 12
A25: 19 | B25: Олекминская | C25: 60.5 | D25: 68 | E25: 46 | F25: 30 | G25: 11 | H25: 11 | I25: 7 | J25: 13 | K25: 12 | L25: 21
A26: 20 | B26: Оленекская | C26: 14.5 | D26: 14 | E26: 12 | F26: 6 | G26: 3 | H26: 6 | I26: 6 | J26: 1 | K26: 7 | L26: 4
A27: 21 | B27: Среднеколымская | C27: 20 | D27: 20 | E27: 17 | F27: 6 | G27: 6 | H27: 11 | I27: 9 | J27: 3 | K27: 6 | L27: 8
A28: 22 | B28: Сунтарская | C28: 60.75 | D28: 63 | E28: 45 | F28: 30 | G28: 28 | H28: 14 | I28: 8 | J28: 4 | K28: 11 | L28: 30
A29: 23 | B29: Таттинская | C29: 42.5 | D29: 49 | E29: 30 | F29: 24 | G29: 21 | H29: 6 | I29: 6 | J29: 3 | K29: 5 | L29: 22
A30: 24 | B30: Томпонская | C30: 43 | D30: 40 | E30: 29 | F30: 15 | G30: 13 | H30: 11 | I30: 7 | J30: 8 | K30: 7 | L30: 14
A31: 25 | B31: Усть-Алданская | C31: 73 | D31: 92 | E31: 57 | F31: 48 | G31: 47 | H31: 8 | I31: 4 | J31: 4 | K31: 12 | L31: 41
A32: 26 | B32: Усть-Майская | C32: 33 | D32: 33 | E32: 23 | F32: 14 | G32: 9 | H32: 9 | I32: 5 | J32: 5 | K32: 7 | L32: 11
A33: 27 | B33: Усть-Янская* | C33: 23 | D33: 20 | E33: 19 | F33: 12 | G33: 9 | H33: 7 | I33: 4 | J33: 8 | K33: 4 | L33: 7
A34: 28 | B34: Хангаласская | C34: 65 | D34: 86 | E34: 56 | F34: 45 | G34: 33 | H34: 11 | I34: 4 | J34: 13 | K34: 14 | L34: 29
A35: 29 | B35: Чурапчинская | C35: 48 | D35: 59 | E35: 37 | F35: 31 | G35: 25 | H35: 6 | I35: 3 | J35: 6 | K35: 11 | L35: 20
A36: 30 | B36: Мирнинская | C36: 68.75 | D36: 70 | E36: 45 | F36: 30 | G36: 26 | H36: 10 | I36: 7 | J36: 11 | K36: 17 | L36: 17
A37: 31 | B37: Нерюнгринская | C37: 32.5 | D37: 31 | E37: 26 | F37: 17 | G37: 7 | H37: 9 | I37: 5 | J37: 5 | K37: 8 | L37: 13
A38: 32 | B38: Эвено-Бытантай | C38: 8 | D38: 9 | E38: 5 | H38: 3 | I38: 1 | L38: 5
A39: 33 | B39: Якутская | C39: 185 | D39: 195 | E39: 169 | F39: 157 | G39: 126 | H39: 12 | I39: 8 | J39: 34 | K39: 49 | L39: 86
A40: 34 | B40: Алданская | C40: 44.25 | D40: 45 | E40: 33 | F40: 14 | G40: 13 | H40: 18 | I40: 11 | J40: 6 | K40: 7 | L40: 20
A41: 35 | B41: М.-Кангаласская | C41: 67 | D41: 59 | E41: 57 | F41: 48 | G41: 43 | H41: 9 | I41: 8 | J41: 12 | K41: 19 | L41: 26
A42: 36 | B42: ГБ г.Нерюнгри | C42: 13 | D42: 16 | E42: 14 | F42: 13 | G42: 11 | H42: 1 | I42: 1 | J42: 3 | K42: 6 | L42: 5
A43: 37 | B43: Бердигестях ДБ | C43: 7.5 | D43: 8 | E43: 4 | F43: 4 | G43: 4 | L43: 4
A44: 38 | B44: Б-ка ГО "п. Жатай" | C44: 5 | D44: 5 | E44: 3 | F44: 3 | G44: 2 | K44: 2 | L44: 1
A45: 39 | B45: Алданский БИЦ | C45: 10.5 | D45: 11 | E45: 7 | F45: 4 | G45: 1 | H45: 3 | I45: 2 | J45: 1 | K45: 3 | L45: 3
A46: 40 | B46: Томмотский БИЦ | C46: 10 | D46: 9 | E46: 6 | F46: 2 | G46: 1 | H46: 4 | I46: 3 | J46: 4 | K46: 1 | L46: 1
B47: Итого по МБ | C47: =SUM(C7:C46) -> 1601.25 | D47: 1711 | E47: 1221 | F47: 874 | G47: 698 | H47: 314 | I47: 199 | J47: 234 | K47: 340 | L47: 647
B48: НБ РС(Я) | C48: 222.5 | D48: 248 | E48: 235 | F48: 221 | G48: 138 | H48: 14 | I48: 12 | J48: 22 | K48: 16 | L48: 197
B49: Филиал НБ "ДТК" | C49: 34 | D49: 34 | E49: 34 | F49: 34 | G49: 21 | J49: 8 | K49: 4 | L49: 22
B50: РБС | C50: 17.5 | D50: 17 | E50: 14 | F50: 13 | G50: 11 | H50: 1 | J50: 3 | K50: 4 | L50: 7
B51: Итого по РС(Я) | C51: =SUM(C47:C50) -> 1875.25 | D51: =SUM(D47:D50) -> 2010 | E51: 1504 | F51: 1142 | G51: 868 | H51: 329 | I51: 211 | J51: 267 | K51: 364 | L51: 873

Sheet т.9.1
K1: Таблица 9.1
A2: Персонал библиотек (из общего числа- в сельской местности)
C4: Штат | D4: Числ. | E4: из них | F4: из них имеют | J4: со стажем работы
A5: № | B5: ЦБС | C5: библ. | D5: раб-ков | E5: осн. | F5: высшее | G5: из них | H5: среднее | I5: из них | J5: от 3 до | K5: от 6 до | L5: свыше
D6: всего | E6: перс. | F6: обр. | G6: библ. | H6: спец. | I6: библ. | J6: 6 лет | K6: 10 лет | L6: 10 лет
A7: 1 | B7: Абыйская | C7: 11 | D7: 11 | E7: 6 | F7: 4 | G7: 2 | H7: 1 | I7: 1 | J7: 2 | K7: 1 | L7: 3
A8: 2 | B8: Аллаиховская | C8: 6 | D8: 7 | E8: 4 | F8: 1 | H8: 2 | J8: 2 | L8: 2
A9: 3 | B9: Амгинская | C9: 57.5 | D9: 61 | E9: 41 | F9: 35 | G9: 25 | H9: 6 | I9: 4 | J9: 3 | K9: 8 | L9: 30
A10: 4 | B10: Анабарская | C10: 8 | D10: 8 | E10: 5 | F10: 2 | G10: 1 | H10: 2 | I10: 2 | J10: 1 | K10: 2 | L10: 2
A11: 5 | B11: Булунская | C11: 9.5 | D11: 12 | E11: 7 | F11: 5 | G11: 5 | H11: 2 | I11: 1 | J11: 1 | K11: 3 | L11: 3
A12: 6 | B12: Верхневилюйская | C12: 57.5 | D12: 65 | E12: 42 | F12: 34 | G12: 31 | H12: 8 | I12: 6 | J12: 9 | K12: 10 | L12: 23
A13: 7 | B13: Верхнеколымская | C13: 4.5 | D13: 5 | E13: 5 | H13: 5 | I13: 3 | L13: 5
A14: 8 | B14: Верхоянская | C14: 18.5 | D14: 24 | E14: 13 | F14: 5 | G14: 5 | H14: 8 | I14: 4 | J14: 3 | K14: 4 | L14: 6
A15: 9 | B15: Вилюйская | C15: 25 | D15: 32 | E15: 20 | F15: 16 | G15: 14 | H15: 4 | I15: 3 | J15: 3 | K15: 6 | L15: 11
A16: 10 | B16: Горная | C16: 24 | D16: 25 | E16: 24 | F16: 20 | G16: 14 | H16: 2 | I16: 1 | J16: 6 | K16: 8 | L16: 10
A17: 11 | B17: Жиганская | C17: 9 | D17: 9 | E17: 7 | F17: 6 | G17: 6 | H17: 1 | I17: 1 | J17: 1 | K17: 4 | L17: 2
A18: 12 | B18: Кобяйская | C18: 27.5 | D18: 34 | E18: 21 | F18: 13 | G18: 10 | H18: 8 | I18: 4 | J18: 6 | K18: 2 | L18: 13
A19: 13 | B19: Ленская | C19: 35 | D19: 35 | E19: 15 | F19: 5 | G19: 4 | H19: 7 | I19: 3 | K19: 9 | L19: 6
A20: 14 | B20: Момская | C20: 20 | D20: 22 | E20: 14 | F20: 8 | G20: 8 | H20: 5 | I20: 4 | J20: 4 | K20: 2 | L20: 8
A21: 15 | B21: Намская | C21: 56.5 | D21: 65 | E21: 38 | F21: 32 | G21: 28 | H21: 6 | I21: 1 | J21: 6 | K21: 9 | L21: 23
A22: 16 | B22: Нижнеколымская | C22: 4 | D22: 3 | E22: 3 | F22: 2 | G22: 2 | H22: 1 | J22: 1 | K22: 1 | L22: 1
A23: 17 | B23: Нюрбинская | C23: 27 | D23: 31 | E23: 23 | F23: 16 | G23: 12 | H23: 7 | I23: 6 | J23: 3 | K23: 5 | L23: 15
A24: 18 | B24: Оймяконская | C24: 10.5 | D24: 10 | E24: 8 | F24: 6 | G24: 6 | H24: 2 | I24: 2 | K24: 2 | L24: 6
A25: 19 | B25: Олекминская | C25: 33.5 | D25: 41 | E25: 25 | F25: 15 | G25: 9 | H25: 5 | I25: 4 | J25: 7 | K25: 3 | L25: 15
A26: 20 | B26: Оленекская | C26: 14.5 | D26: 14 | E26: 12 | F26: 6 | G26: 3 | H26: 6 | I26: 6 | J26: 1 | K26: 7 | L26: 4
A27: 21 | B27: Среднеколымская | C27: 9 | D27: 9 | E27: 9 | F27: 2 | G27: 2 | H27: 7 | I27: 5 | J27: 1 | K27: 4 | L27: 4
A28: 22 | B28: Сунтарская | C28: 60.75 | D28: 63 | E28: 45 | F28: 30 | G28: 28 | H28: 14 | I28: 8 | J28: 4 | K28: 11 | L28: 30
A29: 23 | B29: Таттинская | C29: 42.5 | D29: 49 | E29: 30 | F29: 24 | G29: 21 | H29: 6 | I29: 6 | J29: 3 | K29: 5 | L29: 22
A30: 24 | B30: Томпонская | C30: 14 | D30: 12 | E30: 12 | F30: 4 | G30: 3 | H30: 6 | I30: 4 | J30: 4 | K30: 3 | L30: 5
A31: 25 | B31: Усть-Алданская | C31: 73 | D31: 92 | E31: 57 | F31: 48 | G31: 47 | H31: 8 | I31: 4 | J31: 4 | K31: 12 | L31: 41
A32: 26 | B32: Усть-Майская | C32: 7 | D32: 7 | E32: 5 | F32: 3 | G32: 1 | H32: 2 | I32: 2 | J32: 2 | K32: 1 | L32: 2
A33: 27 | B33: Усть-Янская* | C33: 8 | D33: 8 | E33: 8 | F33: 5 | G33: 4 | H33: 3 | I33: 1 | J33: 3 | K33: 1 | L33: 4
A34: 28 | B34: Хангаласская | C34: 30.5 | D34: 46 | E34: 24 | F34: 18 | G34: 15 | H34: 6 | I34: 4 | J34: 5 | K34: 6 | L34: 13
A35: 29 | B35: Чурапчинская | C35: 48 | D35: 59 | E35: 37 | F35: 31 | G35: 25 | H35: 6 | I35: 3 | J35: 6 | K35: 11 | L35: 20
A36: 30 | B36: Мирнинская | C36: 4.5 | D36: 6 | E36: 3 | F36: 1 | G36: 1 | J36: 1 | L36: 2
A37: 31 | B37: Нерюнгринская | C37: 2 | D37: 2 | E37: 2 | H37: 2 | I37: 1 | K37: 1 | L37: 1
A38: 32 | B38: Эвено-Бытантайская | C38: 8 | D38: 9 | E38: 5 | H38: 3 | I38: 1 | L38: 5
A39: 33 | B39: Якутская | C39: 12 | D39: 14 | E39: 13 | F39: 12 | G39: 10 | H39: 1 | I39: 1 | J39: 3 | K39: 4 | L39: 6
A40: 34 | B40: Алданская | C40: 6 | D40: 6 | E40: 5 | H40: 4 | I40: 1 | K40: 2 | L40: 3
A41: 35 | B41: М.-Кангаласская | C41: 65 | D41: 57 | E41: 55 | F41: 46 | G41: 41 | H41: 9 | I41: 8 | J41: 11 | K41: 19 | L41: 25
A42: 36 | B42: Бердигестях ДБ* | C42: 7.5 | D42: 8 | E42: 4 | F42: 4 | G42: 4 | L42: 4
A43: 37 | B43: Алданский БИЦ | C43: 1 | D43: 1 | E43: 1 | F43: 1 | J43: 1
A44: 38 | B44: Томмотский БИЦ | C44: 1 | D44: 1 | E44: 1 | H44: 1 | K44: 1
B45: Итого по РС(Я) | C45: =SUM(C7:C44) -> 858.75 | D45: 963 | E45: 649 | F45: 460 | G45: 387 | H45: 166 | I45: 105 | J45: 107 | K45: 167 | L45: 375

Sheet т.10
G1: Таблица 10
C2: Электронные (сетевые) ресурсы
A4: № | B4: ЦБС | C4: Число | D4: из них | E4: Число | F4: из них | G4: Число | H4: Число | I4: Объем | J4: Объем
C5: б-к, | E5: б-к, | F5: пред. | G5: б-к, | H5: б-к, | I5: ЭК | J5: ЭБ
C6: созд. | D6: доступ | E6: им. | F6: док. | G6: им. | H6: им.
C7: ЭК | D7: к ЭК | E7: ЭБ | F7: в откр. | G7: сетевые | H7: инсталл.
D8: через | F8: доступе | G8: лиценз. | H8: док.
D9: Инт. | G9: док.
A10: 1 | B10: Абыйская | C10: 1 | D10: 1 | I10: 17945
A11: 2 | B11: Аллаиховская | C11: 1 | D11: 1 | I11: 7671
A12: 3 | B12: Амгинская | C12: 1 | D12: 1 | E12: 1 | F12: 1 | G12: 1 | H12: 1 | I12: 9111 | J12: 103
A13: 4 | B13: Анабарская | C13: 1 | D13: 1 | E13: 1 | F13: 1 | I13: 9656 | J13: 30
A14: 5 | B14: Булунская | C14: 1 | D14: 1 | I14: 10252
A15: 6 | B15: Верхневилюйская | C15: 1 | D15: 1 | E15: 1 | F15: 1 | G15: 1 | H15: 9 | I15: 33096 | J15: 8892
A16: 7 | B16: Верхнеколымская | C16: 1 | D16: 1 | G16: 1 | H16: 1 | I16: 6363
A17: 8 | B17: Верхоянская | C17: 1 | D17: 1 | H17: 1 | I17: 35974
A18: 9 | B18: Вилюйская | C18: 1 | D18: 1 | E18: 1 | F18: 1 | I18: 25141 | J18: 286
A19: 10 | B19: Горная | C19: 1 | D19: 1 | E19: 1 | F19: 1 | G19: 1 | H19: 1 | I19: 11400 | J19: 156
A20: 11 | B20: Жиганская | C20: 1 | D20: 1 | G20: 1 | I20: 11601
A21: 12 | B21: Кобяйская | C21: 1 | D21: 1 | E21: 1 | F21: 1 | H21: 1 | I21: 24077 | J21: 115
A22: 13 | B22: Ленская | C22: 1 | D22: 1 | G22: 1 | H22: 1 | I22: 24417
A23: 14 | B23: Момская | C23: 1 | D23: 1 | I23: 2140
A24: 15 | B24: Намская | C24: 1 | D24: 1 | G24: 1 | H24: 1 | I24: 26964
A25: 16 | B25: Нижнеколымская | C25: 1 | H25: 1 | I25: 9207
A26: 17 | B26: Нюрбинская | C26: 1 | D26: 1 | I26: 9677
A27: 18 | B27: Оймяконская | C27: 1 | D27: 1 | I27: 9855
A28: 19 | B28: Олекминская | C28: 1 | D28: 1 | E28: 1 | F28: 1 | H28: 1 | I28: 24187 | J28: 6226
A29: 20 | B29: Оленекская | C29: 1 | D29: 1 | I29: 7038
A30: 21 | B30: Среднеколымская | C30: 1 | D30: 1 | I30: 5898
A31: 22 | B31: Сунтарская | C31: 1 | D31: 1 | E31: 1 | F31: 1 | G31: 1 | H31: 1 | I31: 29024 | J31: 209
A32: 23 | B32: Таттинская | C32: 1 | D32: 1 | E32: 1 | F32: 1 | G32: 1 | H32: 1 | I32: 20136 | J32: 1536
A33: 24 | B33: Томпонская | C33: 1 | D33: 1 | E33: 1 | F33: 1 | G33: 1 | H33: 1 | I33: 8174 | J33: 2571
A34: 25 | B34: Усть-Алданская | C34: 1 | D34: 1 | E34: 1 | F34: 1 | G34: 1 | H34: 1 | I34: 13496 | J34: 702
A35: 26 | B35: Усть-Майская | C35: 1 | D35: 1 | G35: 1 | H35: 1 | I35: 7638
A36: 27 | B36: Усть-Янская* | C36: 1 | I36: 15937
A37: 28 | B37: Хангаласская | C37: 1 | D37: 1 | E37: 1 | F37: 1 | G37: 1 | H37: 1 | I37: 46046 | J37: 1836
A38: 29 | B38: Чурапчинская | C38: 1 | D38: 1 | I38: 16190
A39: 30 | B39: Мирнинская | C39: 1 | D39: 1 | G39: 2 | H39: 1 | I39: 33904
A40: 31 | B40: Нерюнгринская | C40: 1 | D40: 1 | E40: 1 | F40: 1 | G40: 8 | H40: 4 | I40: 66337 | J40: 3820
A41: 32 | B41: Эвено-Бытантайская | C41: 1 | D41: 1 | I41: 3332
A42: 33 | B42: Якутская | C42: 1 | D42: 1 | G42: 1 | H42: 17 | I42: 180779
A43: 34 | B43: Алданская | C43: 1 | D43: 1 | E43: 1 | F43: 1 | G43: 1 | H43: 1 | I43: 81475 | J43: 7759
A44: 35 | B44: Мегино-Кангаласская | C44: 1 | D44: 1 | G44: 1 | I44: 34171
A45: 36 | B45: ГБ г.Нерюнгри | C45: 1 | D45: 1 | G45: 1 | H45: 1 | I45: 34224
A46: 37 | B46: Бердигестях ДБ | G46: 1
A47: 38 | B47: Б-ка ГО "п. Жатай"
A48: 39 | B48: Алданский БИЦ
A49: 40 | B49: Томмотский БИЦ
B50: Итого по МБ | C50: =SUM(C10:C49) -> 36 | D50: 34 | E50: 14 | F50: 14 | G50: 28 | H50: 48 | I50: =SUM(I10:I49) -> 912533 | J50: =SUM(J10:J47) -> 34241
B51: НБ РС(Я) | C51: 1 | D51: 1 | E51: 1 | F51: 1 | G51: 1 | H51: 1 | I51: 768489 | J51: 80620
B52: Филиал НБ "ДТК" | C52: 1 | D52: 1 | I52: 40203
B53: РБС | C53: 1 | D53: 1 | E53: 1 | F53: 1 | G53: 1 | H53: 1 | I53: 35007 | J53: 22841
B54: ВСЕГО | C54: =SUM(C50:C53) -> 39 | D54: 37 | E54: 16 | F54: 16 | G54: 30 | H54: 50 | I54: 1756232 | J54: 137702

Sheet т.11
H1: Таблица 11
A2: Информационное обслуживание
A4: № | B4: ЦБС | C4: всего | D4: в том числе | F4: Выполнено справок и консульт. | H4: Число обращений удал. польз. (сайт) | J4: "+ -"
C5: документов | D5: МБА, ММБА, ЭДД | E5: вирт. чит. залы
C6: из фондов | F6: всего | G6: из них в удал. режиме | H6: 2021 | I6: 2022
C7: др. б-к
A8: 1 | B8: Абыйская | C8: 7 | D8: 7 | F8: 3211 | H8: 549 | I8: 2766 | J8: =I8-H8 -> 2217
A9: 2 | B9: Аллаиховская | F9: 332 | H9: 118 | I9: 439 | J9: =I9-H9 -> 321
A10: 3 | B10: Амгинская | C10: 59 | E10: 59 | F10: 4305 | G10: 1241 | H10: 9003 | I10: 27490 | J10: 18487
A11: 4 | B11: Анабарская | F11: 2158 | H11: 8 | I11: 0 | J11: -8
A12: 5 | B12: Булунская | C12: 82 | E12: 82 | F12: 2651 | H12: 883 | I12: 1093 | J12: 210
A13: 6 | B13: Верхневилюйская | C13: 132 | D13: 21 | E13: 111 | F13: 4726 | G13: 1463 | H13: 5679 | I13: 39150 | J13: 33471
A14: 7 | B14: Верхнеколымская | F14: 3897 | G14: 334 | H14: 31297 | I14: 40448 | J14: 9151
A15: 8 | B15: Верхоянская | C15: 28 | D15: 28 | F15: 2999 | G15: 306 | I15: 1485 | J15: 1485
A16: 9 | B16: Вилюйская | F16: 10180 | G16: 336 | H16: 21612 | I16: 29027 | J16: 7415
A17: 10 | B17: Горная | C17: 852 | D17: 556 | E17: 296 | F17: 1825 | G17: 81 | H17: 3688 | I17: 5100 | J17: 1412
A18: 11 | B18: Жиганская | F18: 6691 | H18: 680 | I18: 495 | J18: -185
A19: 12 | B19: Кобяйская | F19: 4971 | G19: 175 | H19: 4741 | I19: 17982 | J19: 13241
A20: 13 | B20: Ленская | C20: 120 | D20: 120 | F20: 10174 | H20: 1779 | I20: 3338 | J20: =I20-H20 -> 1559
A21: 14 | B21: Момская | F21: 1263 | J21: =I21-H21 -> 0
A22: 15 | B22: Намская | C22: 8 | D22: 8 | F22: 3844 | G22: 1518 | H22: 22487 | I22: 38970 | J22: 16483
A23: 16 | B23: Нижнеколымская | F23: 899 | H23: 536 | I23: 647 | J23: 111
A24: 17 | B24: Нюрбинская | F24: 7317 | I24: 11214 | J24: 11214
A25: 18 | B25: Оймяконская | F25: 3615 | H25: 2262 | I25: 4199 | J25: 1937
A26: 19 | B26: Олекминская | C26: 2 | D26: 2 | F26: 17367 | G26: 585 | H26: 3234 | I26: 16273 | J26: 13039
A27: 20 | B27: Оленекская | C27: 29 | D27: 29 | F27: 1489 | H27: 2628 | I27: 4156 | J27: 1528
A28: 21 | B28: Среднеколымская | F28: 2700 | H28: 145 | I28: 0 | J28: -145
A29: 22 | B29: Сунтарская | C29: 340 | D29: 12 | E29: 328 | F29: 7641 | H29: 17211 | I29: 49444 | J29: 32233
A30: 23 | B30: Таттинская | C30: 2461 | D30: 2457 | E30: 4 | F30: 2709 | H30: 94618 | I30: 94290 | J30: -328
A31: 24 | B31: Томпонская | C31: 4 | D31: 4 | F31: 9919 | G31: 705 | H31: 11779 | I31: 9682 | J31: -2097
A32: 25 | B32: Усть-Алданская | C32: 54 | D32: 32 | E32: 22 | F32: 23671 | G32: 3872 | H32: 17073 | I32: 22473 | J32: 5400
A33: 26 | B33: Усть-Майская | C33: 592 | D33: 592 | F33: 3344 | G33: 13 | H33: 6994 | I33: 16539 | J33: 9545
A34: 27 | B34: Усть-Янская* | F34: 4727 | G34: 1129 | H34: 186 | I34: 1944 | J34: 1758
A35: 28 | B35: Хангаласская | F35: 8096 | G35: 39 | H35: 24888 | I35: 39467 | J35: 14579
A36: 29 | B36: Чурапчинская | C36: 1006 | D36: 1 | E36: 1005 | F36: 4108 | G36: 283 | H36: 43398 | I36: 6801 | J36: -36597
A37: 30 | B37: Мирнинская | F37: 7845 | G37: 1819 | H37: 12446 | I37: 15784 | J37: 3338
A38: 31 | B38: Нерюнгринская | C38: 169 | E38: 169 | F38: 9553 | G38: 1182 | H38: 33648 | I38: 60654 | J38: 27006
A39: 32 | B39: Эвено-Бытантай | C39: 30 | D39: 30 | F39: 130 | H39: 1036 | I39: 2599 | J39: 1563
A40: 33 | B40: Якутская | C40: 177 | D40: 177 | F40: 46134 | G40: 12659 | H40: 453821 | I40: 395119 | J40: -58702
A41: 34 | B41: Алданская | C41: 18 | D41: 1 | E41: 17 | F41: 5811 | G41: 28 | H41: 362513 | I41: 369090 | J41: 6577
A42: 35 | B42: Мег.-Кангаласская | C42: 184 | D42: 184 | F42: 3478 | G42: 484 | H42: 61850 | I42: 61933 | J42: 83
A43: 36 | B43: ГБ г.Нерюнгри | F43: 5958 | H43: 9283 | I43: 12466 | J43: 3183
A44: 37 | B44: Бердигестях ДБ | F44: 119 | H44: 2799 | I44: 6516 | J44: 3717
A45: 38 | B45: Б-ка ГО "п. Жатай" | F45: 503 | H45: 712 | I45: 1068 | J45: 356
A46: 39 | B46: Алданский БИЦ | F46: 307 | H46: 186 | I46: 1044 | J46: 858
A47: 40 | B47: Томмотский БИЦ | C47: 100 | E47: 100 | F47: 477 | H47: 1314 | I47: 624 | J47: -690
B48: ИТОГО по МБ | C48: =SUM(C8:C47) -> 6454 | D48: 4261 | E48: 2193 | F48: 241144 | G48: 28252 | H48: 1267084 | I48: 1411809 | J48: 144725
B49: НБ РС(Я) | C49: 1978 | D49: 1856 | E49: 122 | F49: 31898 | G49: 16770 | H49: 881121 | I49: 935687 | J49: 54566
B50: Филиал НБ "ДТК" | F50: 268 | H50: 15518 | I50: 35108 | J50: 19590
B51: РБС | C51: 54 | D51: 54 | F51: 2422 | G51: 496 | H51: 23951 | I51: 26042 | J51: 2091
B52: Итого по РС(Я) | C52: =SUM(C48:C51) -> 8486 | D52: 6171 | E52: 2315 | F52: 275732 | G52: 45518 | H52: =SUM(H48:H51) -> 2187674 | I52: =SUM(I48:I51) -> 2408646 | J52: 220972
